Cogmind - Beta 12 X4 @@@ ROGUE MODE // 2022.11.23 @ 20:03:50 // AFD2019/Pay2Buy Player: Terminus Result: Destroyed by H-88 Terminator with KE Penetrator Performance ------------- Evolutions (9) 4500 Regions Visited (30) 6000 Robots Destroyed (1678) 8390 Value Destroyed (90052) 90052 Prototype IDs (75) 1500 Alien Tech Used (1) 200 Bonus (106056) 106056 TOTAL SCORE: 216698 Bonus ------- Triggered High Security 4500 High Alert Combat Kills 92749 Follower Combat Kills 1244 Met Data Miner 300 Met Imprinter 300 Met Zhirov 300 Met Warlord at Base 500 MAIN.C Attacked Warlord 500 Warlord Defense Kills 4806 Scanned by Researcher 500 Destroyed MAIN.C Guards 500 Friendly Fire -143 Cogmind --------- Core Integrity 0/1600 Matter 155/300 Energy 345/350 System Corruption 45% Temperature Cool (12) Movement Flying (24) Location -1/Command Parts ------- > --- POWER (3) -------- Improved Quantum Reactor > --- PROPULSION (4) --- Cooled Q-thruster Cooled Q-thruster Cooled Q-thruster > --- UTILITY (14) ----- Experimental Signal Interpreter Experimental Core Analyzer > --- WEAPON (4) ------- (None) > --- INVENTORY (10) --- Improved Quantum Reactor Compact Battery (200) Experimental Matter Compressor (500) Makeshift Sensor Array Experimental Focal Shield Advanced System Restoration Module Long-range Tractor Beam Peak State ------------ > --- POWER ------------ Zero-point Reactor Zero-point Reactor Zero-point Reactor > --- PROPULSION ------- High-density Centrium Heavy Treads High-density Centrium Heavy Treads > --- UTILITY ---------- Advanced Power Amplifier Experimental Power Amplifier Advanced Coolant Injector Experimental Signal Interpreter Experimental Targeting Computer Experimental Core Analyzer Experimental Core Analyzer Advanced Particle Accelerator Quantum Capacitor Centrium Medium Armor Plating Centrium Medium Armor Plating Experimental Focal Shield Advanced Force Field > --- WEAPON ----------- Null Cannon Heavy Hardcell Cannon Advanced Micro-nuke Launcher > --- INVENTORY -------- Advanced Coolant Injector Advanced Coolant Injector Advanced Coolant Injector Compact Battery Experimental Matter Compressor Makeshift Sensor Array Improved Shock Absorption System Advanced System Restoration Module Long-range Tractor Beam Enhanced Nova Cannon [Rating: 232] Favorites ----------- Power Zero-point Reactor Engine Improved Ion Engine Power Core Enhanced Fission Core Reactor Zero-point Reactor Propulsion Heavy Treads Treads Heavy Treads Flight Unit Cooled Q-thruster Utility Experimental Targeting Computer Device Long-range Tractor Beam Storage Compact Battery Processor Experimental Targeting Computer Hackware Improved Hacking Suite Protection Layered Heavy Armor Plating Weapon Cooled Plasma Cannon Energy Cannon Cooled Plasma Cannon Ballistic Gun Advanced KE Penetrator Ballistic Cannon Blast Cannon Launcher Rocket Array Build | -11 -10 -10 -9 -9 -8 -7 -7 -7 -7 -6 -6 -6 -6 -6 -5 -5 -5 -5 -5 -4 -4 -4 -4 -4 -3 -3 -3 -2 -1 -1 ------- Run | Scr Mat Min Mat Min Mat Fac Low Low Dat Pro Fac Low Low Zio Pro Fac Upp Upp War Pro Fac Upp Upp Zhi Pro Res Tes Res Acc Com Slots Evolved 18 | . . . 2 . 2 2 . . . . 2 . . . . 2 . . . . 2 . . . . 2 . 2 2 . Power 2 | . . . . . . . . . . . . . . . . . . . . . 1 . . . . . . 1 . . Propulsion 2 | . . . . . 1 . . . . . 1 . . . . . . . . . . . . . . . . . . . Utility 12 | . . . 1 . 1 2 . . . . 1 . . . . 2 . . . . . . . . . 2 . 1 2 . Weapon 2 | . . . 1 . . . . . . . . . . . . . . . . . 1 . . . . . . . . . Parts Attached 357 | . . . 4 6 4 33 9 14 . 1 65 4 . 3 1 54 2 5 5 12 40 8 7 6 7 18 . 13 7 29 Power 10 | . . . . . . . . . . . 1 . . . . . . . . . 2 . . 2 . . . 1 . 4 Engine . | . . . . . . . . . . . . . . . . . . . . . . . . . . . . . . . Core 1 | . . . . . . . . . . . 1 . . . . . . . . . . . . . . . . . . . Reactor 9 | . . . . . . . . . . . . . . . . . . . . . 2 . . 2 . . . 1 . 4 Propulsion 2 | . . . . . . . . . . . . . . . . . . . . . . . . 1 1 . . . . . Treads 2 | . . . . . . . . . . . . . . . . . . . . . . . . 1 1 . . . . . Leg . | . . . . . . . . . . . . . . . . . . . . . . . . . . . . . . . Wheel . | . . . . . . . . . . . . . . . . . . . . . . . . . . . . . . . Hover . | . . . . . . . . . . . . . . . . . . . . . . . . . . . . . . . Flight . | . . . . . . . . . . . . . . . . . . . . . . . . . . . . . . . Utility 196 | . . . 1 1 . 16 1 6 . . 29 1 . . . 27 1 4 2 9 34 4 2 . 4 18 . 11 6 19 Device 179 | . . . . 1 . 11 1 6 . . 28 1 . . . 27 1 4 2 8 33 3 2 . 2 18 . 9 5 17 Storage 2 | . . . . . . . . . . . . . . . . . . . . . . . . . 1 . . . . 1 Processor 2 | . . . . . . . . . . . . . . . . . . . . . 1 . . . . . . . 1 . Hackware 1 | . . . . . . . . . . . 1 . . . . . . . . . . . . . . . . . . . Protection 12 | . . . 1 . . 5 . . . . . . . . . . . . . 1 . 1 . . 1 . . 2 . 1 Artifact . | . . . . . . . . . . . . . . . . . . . . . . . . . . . . . . . Weapon 149 | . . . 3 5 4 17 8 8 . 1 35 3 . 3 1 27 1 1 3 3 4 4 5 3 2 . . 1 1 6 Energy Gun . | . . . . . . . . . . . . . . . . . . . . . . . . . . . . . . . Energy Cannon 63 | . . . . 5 2 7 4 4 . 1 16 3 . 3 . 11 . . . . . . . . 1 . . 1 1 4 Ballistic Gun 12 | . . . . . . . . . . . . . . . . . . . . 3 2 2 3 2 . . . . . . Ballistic Cannon 3 | . . . . . . . . . . . . . . . . . . 1 . . 1 . . 1 . . . . . . Launcher 71 | . . . 3 . 2 10 4 4 . . 19 . . . 1 16 1 . 3 . 1 2 2 . 1 . . . . 2 Special Weapon . | . . . . . . . . . . . . . . . . . . . . . . . . . . . . . . . Impact Weapon . | . . . . . . . . . . . . . . . . . . . . . . . . . . . . . . . Slashing Weapon . | . . . . . . . . . . . . . . . . . . . . . . . . . . . . . . . Piercing Weapon . | . . . . . . . . . . . . . . . . . . . . . . . . . . . . . . . Special Melee Weapon . | . . . . . . . . . . . . . . . . . . . . . . . . . . . . . . . Unidentified Prototypes 1 | . . . . . . 1 . . . . . . . . . . . . . . . . . . . . . . . . Parts Lost 75 | . . 1 1 . 3 5 . . . . 3 . . . . 4 . . . . 4 . . . . . . 9 3 42 Power 4 | . . . . . . . . . . . . . . . . . . . . . . . . . . . . . . 4 Propulsion 9 | . . . . . 1 2 . . . . 1 . . . . . . . . . . . . . . . . . . 5 Utility 46 | . . 1 1 . . 3 . . . . 2 . . . . 2 . . . . 4 . . . . . . 7 2 24 Weapon 16 | . . . . . 2 . . . . . . . . . . 2 . . . . . . . . . . . 2 1 9 Highest Loss Streak 15 | . . 1 1 . 2 2 . . . . 1 . . . . 1 . . . . 2 . . . . . . 8 2 15 To Critical Strikes 1 | . . . . . . . . . . . . . . . . . . . . . . . . . . . . . . 1 Average Slot Usage (%) 82 | . 98 100 99 100 100 98 92 92 92 92 79 80 80 78 80 76 80 72 75 82 83 78 78 66 78 76 76 69 78 83 Engine 1 | . 14 14 11 11 1 . . . . . . . . . . . . . . . . . . . . . . . . . Core 2 | . . . . . 7 7 7 7 7 7 5 6 6 6 6 4 . . . . . . . . . . . . . . Reactor 3 | . . . . . . . . . . . . . . . . . 5 5 5 5 10 10 10 9 10 9 9 8 8 11 Treads 13 | . 28 28 22 22 27 22 23 23 23 23 12 13 13 13 13 11 11 11 11 11 10 10 10 10 10 9 9 8 8 7 Device 18 | . 14 14 22 22 18 21 15 15 15 15 13 13 13 13 13 17 21 17 19 23 20 21 21 21 16 22 23 20 26 23 Processor 11 | . . . . . 9 15 15 15 15 15 12 13 13 13 13 11 11 11 11 11 13 15 15 15 15 14 14 13 16 15 Hackware 2 | . . . . . . . . . . . 5 6 6 6 6 5 5 5 5 5 1 . . . . . . . . . Protection 6 | . 14 14 11 11 9 7 7 7 7 7 6 6 6 6 6 4 5 5 5 5 5 5 5 5 4 4 4 4 5 7 Energy Cannon 8 | . 26 28 4 32 27 18 14 14 15 21 13 19 20 18 14 4 5 5 2 . . . . . 4 4 4 4 4 4 Ballistic Gun 1 | . . . . . . . . . . . . . . . . . . . . 10 20 9 9 2 1 . . . . 4 Launcher 7 | . . . 28 . . 3 7 8 7 1 6 . . . 4 11 11 4 8 6 . . . . 4 4 4 4 10 3 Naked Turns . | . . . . . . . . . . . . . . . . . . . . . . . . . . . . . . . Heaviest Build 166 | 16 24 24 34 33 40 51 51 51 49 55 60 60 60 60 65 90 87 97 97 92 128 132 132 126 136 145 142 166 150 141 Greatest Support 180 | 46 46 46 46 46 79 88 88 88 88 88 140 140 140 140 140 140 140 140 140 140 140 140 140 140 140 140 140 180 180 180 Greatest Overweight (x) 1 | . . . . . . . . . . . . . . . . . . . . . . . . . . 1 1 1 . 1 Average Overweight (x) . | . . . . . . . . . . . . . . . . . . . . . . . . . . . 1 . . . Largest Inventory Capacity 10 | 10 10 10 10 10 10 10 10 10 10 10 10 10 10 10 10 10 10 10 10 10 10 10 10 10 10 10 10 10 10 10 Average Capacity 10 | 10 10 10 10 10 10 10 10 10 10 10 10 10 10 10 10 10 10 10 10 10 10 10 10 10 10 10 10 10 10 10 Most Carried 10 | . . 1 10 10 10 10 10 10 10 10 10 10 10 10 10 10 10 10 10 10 10 10 9 10 10 10 10 10 10 10 Average Carried 9 | . . . 5 9 10 9 9 9 9 10 9 10 10 10 9 9 9 9 9 9 9 9 8 10 9 9 9 9 9 8 Final Capacity 10 | 10 10 10 10 10 10 10 10 10 10 10 10 10 10 10 10 10 10 10 10 10 10 10 10 10 10 10 10 10 10 10 Final Carried 10 | . . 1 9 10 10 10 10 10 10 10 10 10 10 10 10 10 10 10 10 10 10 9 10 10 10 10 10 9 10 7 Class Distribution -------------------- 57% | Mutant 18% | Skirmisher 9% | Tank 8% | Gunner 5% | Bomber Dominant Class ---------------- Mutant | -10/Materials Mutant | -10/Mines Tank | -9/Materials Bomber | -9/Mines Bomber | -8/Materials Mutant | -7/Factory Skirmisher | -7/Lower Caves Skirmisher | -7/Lower Caves Mutant | -7/Data Miner Skirmisher | -6/Proximity Caves Skirmisher | -6/Factory Skirmisher | -6/Lower Caves Skirmisher | -6/Lower Caves Skirmisher | -6/Zion Mutant | -5/Proximity Caves Mutant | -5/Factory Mutant | -5/Upper Caves Mutant | -5/Upper Caves Tank | -5/Warlord Tank | -4/Proximity Caves Gunner | -4/Factory Mutant | -4/Upper Caves Mutant | -4/Upper Caves Mutant | -4/Zhirov Mutant | -3/Proximity Caves Mutant | -3/Research Mutant | -3/Testing Mutant | -2/Research Mutant | -1/Access Mutant | -1/Command Resources | -11 -10 -10 -9 -9 -8 -7 -7 -7 -7 -6 -6 -6 -6 -6 -5 -5 -5 -5 -5 -4 -4 -4 -4 -4 -3 -3 -3 -2 -1 -1 ----------- Run | Scr Mat Min Mat Min Mat Fac Low Low Dat Pro Fac Low Low Zio Pro Fac Upp Upp War Pro Fac Upp Upp Zhi Pro Res Tes Res Acc Com Matter Collected 41876 | . 194 . 963 251 81 1653 323 918 . 20 4177 65 81 . 491 4301 292 399 1163 690 3139 1031 580 . 181 3510 1593 2348 4653 8779 Remotely 31337 | . . . 963 241 . 1132 61 456 . . 2762 14 . . . 2709 97 214 914 492 3132 378 580 . 77 3004 1347 1948 3799 7017 Salvage Created 65756 | . 251 190 1929 434 1065 2585 88 248 . 101 6149 143 81 . 201 6042 182 363 730 654 5682 141 437 . 288 7433 3831 4035 8623 13850 Parts . | . . . . . . . . . . . . . . . . . . . . . . . . . . . . . . . Haulers Intercepted 15 | . . . 3 . . 3 . . . . 1 . . . . 1 . . . . 2 . . . . 5 . . . . Recyclers Shooed 11 | . . . 1 . . 3 1 . . . 1 . . . . 1 . . . . 1 . . . . 1 . . . 2 Parts Field Recycled . | . . . . . . . . . . . . . . . . . . . . . . . . . . . . . . . Retrieved Matter . | . . . . . . . . . . . . . . . . . . . . . . . . . . . . . . . Parts Self-Destructed . | . . . . . . . . . . . . . . . . . . . . . . . . . . . . . . . Prevented . | . . . . . . . . . . . . . . . . . . . . . . . . . . . . . . . Kills | -11 -10 -10 -9 -9 -8 -7 -7 -7 -7 -6 -6 -6 -6 -6 -5 -5 -5 -5 -5 -4 -4 -4 -4 -4 -3 -3 -3 -2 -1 -1 ------- Run | Scr Mat Min Mat Min Mat Fac Low Low Dat Pro Fac Low Low Zio Pro Fac Upp Upp War Pro Fac Upp Upp Zhi Pro Res Tes Res Acc Com Combat Hostiles Destroyed 1709 | . 5 9 56 10 24 75 9 13 . 1 150 6 1 . 9 129 10 9 41 18 74 9 10 . 11 144 124 107 165 490 Guns 62 | . . . . . . . . . . . . . . . . . . . . 8 53 . 1 . . . . . . . Cannons 231 | . 5 6 8 7 17 10 . 4 . 1 20 2 1 . 4 18 2 3 . . 11 3 3 . 3 27 1 12 5 58 AOE 1373 | . . 3 48 3 6 64 9 9 . . 129 4 . . 5 102 8 6 41 10 10 6 6 . 8 115 123 87 154 417 Classes Destroyed 31 | . 4 2 9 . . 4 . . . 1 2 . . . . . . . 1 . 1 1 . . . 1 1 1 1 2 Worker 107 | . . . 7 . 1 7 . . . . 10 . . . . 3 . . . . 15 . . . . 40 . . 6 18 Builder 95 | . 1 . 8 . . 4 . . . . 17 . . . . 20 . . . . 10 . . . . 24 . . 11 . Tunneler 10 | . . . 2 2 . . . . . . 2 . . . . . . . . . 2 . . . . 2 . . . . Hauler 15 | . . . 3 . . 3 . . . . 1 . . . . 1 . . . . 2 . . . . 5 . . . . Recycler 47 | . . . 2 . . 3 . . . . 7 . . . . 7 . . . . 4 . . . . 17 . . 4 3 Carrier 22 | . . . . . . 1 . . . . 5 . . . . 4 . . . . . . . . . 1 1 . 2 8 Minesweeper 1 | . . . . . . . . . . 1 . . . . . . . . . . . . . . . . . . . . Mechanic 62 | . . . 1 1 1 3 . . . . 9 . . . . 6 . . 2 . 3 . . . . 5 9 8 9 5 Operator 8 | . 1 . . . 1 2 . . . . 1 . . . . . . . . . 1 . . . . . . . . 2 Watcher 35 | . 1 . 4 . 2 1 . . . . . . . . . 2 . . . . 7 . . . . 5 . 3 4 6 Swarmer 149 | . . 5 5 3 6 11 8 2 . . 3 4 . . 2 . 8 . . 3 9 6 4 . 4 5 4 5 12 40 Cutter 10 | . . . . . . . . . . . . . . . . . . . . . . . . . . . . . . 10 Saboteur 62 | . . . . . . . . . . . 2 . . . . 4 . . 3 1 2 . . . . 4 7 2 12 25 Grunt 631 | . 5 2 35 4 11 39 . 7 . . 83 . . . 5 50 1 7 25 6 28 2 4 . 6 57 35 40 51 128 Brawler 102 | . . . 2 1 . 2 . . . . 12 . . . 1 14 . . 1 2 5 . . . . 6 10 6 7 33 Duelist 92 | . . . 3 . 1 1 . 3 . . 9 . . . 1 12 . 1 1 2 3 . . . . 5 5 3 13 29 Protector 97 | . . . 6 . . 7 . . . . 11 . . . . 11 . . 3 . 3 . . . . 11 9 5 8 23 Researcher 1 | . . . . . . . . . . . . . . . . . . . . . . . . . . . 1 . . . Sentry 40 | . . . 5 1 6 3 1 1 . 1 . . . . . 4 . 1 . 2 4 1 . . 1 3 . 4 1 1 Demolisher 11 | . . . . . . . . . . . . . . . . . . . . . . . . . . . . 1 . 10 Specialist 32 | . . . . . . 3 . . . . . . . . . . . . 1 . 2 . . . . 2 . . . 24 Hunter 152 | . . . . . . 5 . . . . 12 2 . . . 11 1 . . . 10 . . . . 18 18 9 13 53 Programmer 217 | . . . . . . 4 . . . . 17 . . . . 23 . . 3 2 6 . 2 . . 31 28 14 19 68 Heavy 1 | . . . . . . . . . . . . . . . . . . . . . 1 . . . . . . . . . Q-Series 2 | . . . . . . . . . . . . . . . . . . . . . . . . . . . . . 2 . Behemoth 5 | . . . . . . . . . . . 1 . 1 . . . . . 1 . 1 . . . . . . 1 . . M Guard 2 | . . . . . . . . . . . . . . . . . . . . . . . . . . . . . . 2 Combat Programmer 2 | . . . . . . . . . . . . . . . . . . . . . . . . . . . . . . 2 Investigator 8 | . . . . . . . . . . . . . . . . . . . . . . . . . . 2 2 1 1 2 Striker 44 | . . . . . . . . . . . . . . . . . . . . . . . . . . . 5 7 12 20 Executioner 53 | . . . . . . . . . . . . . . . . . . . 3 . . . . . . 2 3 10 15 20 Alpha 7 2 | . . . . . . . . . . . . . . . . . . . . . . . . . . . . . . 2 Decomposer 3 | . . . . . . . . . . . . . 1 . . . . 2 . . . . . . . . . . . . Packrat 1 | . . . . . . . . . . . . . . . . . . . . 1 . . . . . . . . . . Samaritan 3 | . . . . . . . . . . . . . . . . . . . . . . 3 . . . . . . . . Assembled 2 | . . 2 . . . . . . . . . . . . . . . . . . . . . . . . . . . . Best Kill Streak 173 | . 3 3 11 5 8 21 6 6 . 1 31 4 1 . 4 20 4 8 18 10 11 5 4 . 5 20 42 47 28 173 Combat Bots Only 171 | . 2 3 7 3 7 19 6 6 . 1 26 4 1 . 4 18 4 8 17 10 10 5 4 . 5 16 36 40 18 171 Max Kills in Single Turn 173 | . 1 3 8 3 3 19 2 3 . 1 8 2 1 . 2 7 4 4 6 4 4 4 3 . 3 10 7 7 6 173 Gunslinging 1 | . . . . . . . . . . . . . . . . . . . . . 1 . . . . . . . . . Exploded 171 | . . 3 5 2 3 8 2 3 . . 8 2 . . 2 6 4 4 5 4 3 4 2 . 3 8 7 7 6 171 Melee . | . . . . . . . . . . . . . . . . . . . . . . . . . . . . . . . Uniques/NPCs Destroyed 1 | . . . . 1 . . . . . . . . . . . . . . . . . . . . . . . . . . YI-UF0 (-9/Mines) Combat | -11 -10 -10 -9 -9 -8 -7 -7 -7 -7 -6 -6 -6 -6 -6 -5 -5 -5 -5 -5 -4 -4 -4 -4 -4 -3 -3 -3 -2 -1 -1 -------- Run | Scr Mat Min Mat Min Mat Fac Low Low Dat Pro Fac Low Low Zio Pro Fac Upp Upp War Pro Fac Upp Upp Zhi Pro Res Tes Res Acc Com Damage Taken 36152 | . 200 220 375 266 453 1530 100 287 . 34 3232 70 159 . 74 2146 101 189 469 251 3023 130 45 . 91 1729 508 5694 1477 13299 Core 2890 | . 35 23 56 9 45 166 . . . 6 140 15 . . . 32 . 19 102 . 97 . . . . 41 54 432 108 1510 Absorbed by Shields 14350 | . . . . . . . . . . . . . . . . 352 7 . 182 151 2185 139 47 . 92 1538 525 2370 1556 5206 Reduced by Siege Mode 3426 | . . . . . . . . . . . 298 . 15 . . 401 . . 83 16 194 5 3 . . 249 40 573 128 1421 Regen/Repaired (Parts) 159 | . . . . . . . . . . . . . . . . . . . 159 . . . . . . . . . . . Core Remaining (%) 84 | 100 . 76 . 83 91 . . . . 75 . . . . 81 . . . . 84 . . . . 91 . 92 70 . . Volleys Fired 2242 | . 57 17 58 22 43 118 9 15 . 4 157 3 11 . 13 230 12 9 20 20 152 13 12 . 11 247 84 168 199 538 Largest 4 | . 2 2 3 3 3 3 3 3 . 3 3 3 3 . 3 3 2 2 3 3 4 2 3 . 3 2 1 1 1 4 Hottest 480 | . 136 136 136 199 196 120 131 131 . 105 135 105 105 . 105 147 98 155 147 147 140 120 190 . 250 250 120 130 130 480 Shots Fired 3516 | . 103 34 130 50 123 224 13 35 . 12 345 8 32 . 19 316 14 14 52 58 528 14 16 . 14 254 86 169 200 653 Gun 558 | . . . . . . . . . . . . . . . . . . . . 48 503 . 3 . 1 . . . . 3 Cannon 1699 | . 103 34 64 46 120 172 . 20 . 12 227 6 32 . 10 178 9 7 4 . 23 12 11 . 6 132 1 72 40 358 Launcher 1259 | . . . 66 4 3 52 13 15 . . 118 2 . . 9 138 5 7 48 10 2 2 2 . 7 122 85 97 160 292 Special . | . . . . . . . . . . . . . . . . . . . . . . . . . . . . . . . Kinetic 695 | . . . . . . . . . . . . . . . . . . 2 . 48 526 12 14 . 5 28 1 14 . 45 Thermal 1560 | . 103 34 64 43 120 172 . 20 . 12 227 6 32 . 10 178 9 5 4 . . . . . 2 104 . 58 40 317 Explosive 1220 | . . . 66 4 3 52 13 15 . . 118 2 . . 9 138 5 7 48 10 2 2 2 . 7 122 85 92 143 275 Electromagnetic 41 | . . . . 3 . . . . . . . . . . . . . . . . . . . . . . . 5 17 16 Robot Hit Streak 77 | . 7 6 7 6 14 17 12 10 . 4 70 28 38 . 4 75 5 6 . 38 77 19 16 . 19 43 54 18 44 57 Robot Miss Streak 4 | . 3 3 3 2 3 2 1 1 . 3 2 . 1 . 1 2 2 2 . 1 4 2 2 . 1 3 1 3 4 4 Penetration Max 1 | . . . . . . . . . . . . . . . . . . . . . 1 1 . . . . . . . . Secondary Targets 23 | . . . . . . . . . . . . . . . . . . . . 3 20 . . . . . . . . . Max Gunslinging Chain 2 | . . . . . . . . . . . . . . . . . . . . 1 2 . . . . . . . . . Capacitor 400 | . . . . . . . . . . . . . . . . 171 9 4 4 . . . . . . 64 . 39 11 98 Shots Hit Robots 1915 | . 19 19 35 18 78 99 3 19 . 7 195 4 17 . 10 209 6 8 . 42 365 10 10 . 5 175 42 103 67 350 Core Hits 4456 | . 11 10 117 18 39 158 15 26 . 3 679 13 4 . 24 410 11 20 102 48 259 19 26 . 21 421 353 335 401 913 Critical Kills 65 | . . . . . . 1 . . . . 2 . . . . 6 . . . 5 35 . . . . 3 . 6 . 7 Critical Parts Destroyed 45 | . . . . . . . . . . . . . . . . . . . . 6 39 . . . . . . . . . Critical Strikes 119 | . . . . . . 1 . . . . 2 . . . . 6 . . . 12 75 2 . . . 4 . 8 . 9 Meltdown 25 | . . . . . . 1 . . . . 2 . . . . 6 . . . . . . . . . 3 . 6 . 7 Destroy 87 | . . . . . . . . . . . . . . . . . . . . 12 75 . . . . . . . . . Blast 7 | . . . . . . . . . . . . . . . . . . . . . . 2 . . . 1 . 2 . 2 Melee Attacks . | . . . . . . . . . . . . . . . . . . . . . . . . . . . . . . . Impact . | . . . . . . . . . . . . . . . . . . . . . . . . . . . . . . . Slashing . | . . . . . . . . . . . . . . . . . . . . . . . . . . . . . . . Piercing . | . . . . . . . . . . . . . . . . . . . . . . . . . . . . . . . Sneak Attacks . | . . . . . . . . . . . . . . . . . . . . . . . . . . . . . . . Combat Hostiles . | . . . . . . . . . . . . . . . . . . . . . . . . . . . . . . . Follow-up Attacks . | . . . . . . . . . . . . . . . . . . . . . . . . . . . . . . . Damage Inflicted 467087 | . 476 586 6154 741 2324 12663 691 1989 . 291 28740 339 619 . 1329 26058 1041 1363 7800 2939 15502 1498 954 . 1621 38547 28097 27184 40871 216670 Guns 11241 | . . . . . . . . . . . . . . . . . . . . 1091 10082 . 27 . 26 . . . . 15 Cannons 54974 | . 433 396 473 535 1914 2077 . 406 . 291 4725 93 600 . 124 5132 193 221 . . 1939 682 463 . 366 10418 38 4373 755 18327 Explosions 400403 | . 36 190 5658 206 393 10574 691 1508 . . 23967 246 . . 1205 20917 843 1117 7800 1848 3371 816 464 . 1229 28048 28059 22773 40116 198328 Melee . | . . . . . . . . . . . . . . . . . . . . . . . . . . . . . . . Ramming 469 | . 7 . 23 . 17 12 . 75 . . 48 . 19 . . 9 5 25 . . 110 . . . . 81 . 38 . . Kinetic 23502 | . . . . . . . . . . . . . . . . . . 79 . 1091 13536 1040 695 . 343 2119 38 1492 . 3069 Thermal 181944 | . 469 586 473 493 1914 4904 . 406 . 291 5522 93 600 . 124 5218 193 161 . . 1113 . . . 93 8864 . 3309 755 146363 Explosive 257153 | . . . 5658 206 393 7747 691 1508 . . 23170 246 . . 1205 20831 843 1098 7800 1848 661 458 259 . 1185 27483 28059 21794 38331 65679 Electromagnetic 4019 | . . . . 42 . . . . . . . . . . . . . . . . 82 . . . . . . 551 1785 1559 Impact . | . . . . . . . . . . . . . . . . . . . . . . . . . . . . . . . Slashing . | . . . . . . . . . . . . . . . . . . . . . . . . . . . . . . . Piercing . | . . . . . . . . . . . . . . . . . . . . . . . . . . . . . . . Highest Corruption 45 | . . . . . . . . . . . 4 4 4 4 . 6 4 4 4 1 2 2 4 4 4 12 3 10 8 45 Average Corruption 5 | . . . . . . . . . . . 2 4 4 4 . 3 4 4 1 1 1 2 2 4 4 8 2 4 3 14 Corruption Purged 32 | . . . . . . . . . . . . . . . . 6 . . . . . . . . . 12 . . . 14 Corruption Blocked 29 | . . . . . . . . . . . . . . . . . . . . . 13 . . . . . . 16 . . Effects 594 | . . . . . . . . . . . 79 15 11 . . 61 9 19 1 1 20 9 6 3 18 114 13 9 47 159 Message Errors 123 | . . . . . . . . . . . 12 3 7 . . 16 2 4 1 . 4 2 3 1 2 20 4 2 11 29 Matter Fused 142 | . . . . . . . . . . . 15 3 2 . . 13 4 2 . . 2 3 1 . 10 40 2 2 15 28 Heat Flow Errors 60 | . . . . . . . . . . . 12 . . . . 8 3 3 . . 4 1 . 1 . 19 1 1 3 4 Energy Discharges 79 | . . . . . . . . . . . 16 2 1 . . 6 . 2 . 1 1 1 . . 4 9 . 1 8 27 Parts Rejected 7 | . . . . . . . . . . . . . . . . . . . . . 1 . . . . 1 . 1 . 4 Data Loss (minor) 68 | . . . . . . . . . . . 11 6 . . . 8 . 4 . . 1 2 1 1 1 7 3 1 3 19 Data Loss (major) 24 | . . . . . . . . . . . 6 . . . . 5 . 1 . . 1 . . . . 5 1 . 2 3 Misfires 33 | . . . . . . . . . . . 5 1 . . . 1 . 1 . . 1 . 1 . . 8 2 1 3 9 Alerts 13 | . . . . . . . . . . . 1 . . . . 3 . 2 . . 2 . . . . 1 . . . 4 Misdirections 7 | . . . . . . . . . . . . . . . . . . . . . . . . . . . . . . 7 Weapon Failures 38 | . . . . . . . . . . . 1 . 1 . . 1 . . . . 3 . . . 1 4 . . 2 25 Overload Shots 5 | . . . . . . 4 . . . . . . . . . 1 . . . . . . . . . . . . . . Effects 2 | . . . . . . 1 . . . . . . . . . 1 . . . . . . . . . . . . . . Energy Bleed 1 | . . . . . . . . . . . . . . . . 1 . . . . . . . . . . . . . . Short Circuit 1 | . . . . . . 1 . . . . . . . . . . . . . . . . . . . . . . . . Overflow Damage 21468 | . 31 7 119 14 33 797 15 56 . 50 482 13 13 . 33 744 107 9 292 60 147 133 7 . 135 2115 755 870 2109 12322 Projectiles 3793 | . 5 . 1 14 33 77 . . . 50 170 . . . . 189 50 9 . . 41 31 7 . 9 1491 . 328 2 1286 Explosions 17624 | . 26 7 118 . . 720 15 43 . . 312 13 . . 33 555 57 . 292 60 95 102 . . 126 624 755 528 2107 11036 Melee 51 | . . . . . . . . 13 . . . . 13 . . . . . . . 11 . . . . . . 14 . . Knockbacks 52 | . . . . . . . . . . . . . . . . . . 1 . . 18 1 5 . 1 11 . 9 . 6 Impact 4 | . . . . . . . . . . . . . . . . . . 1 . . 1 . . . . 2 . . . . Kinetic 45 | . . . . . . . . . . . . . . . . . . . . . 15 1 5 . 1 9 . 9 . 5 Secondary 3 | . . . . . . . . . . . . . . . . . . . . . 2 . . . . . . . . 1 Self-Inflicted Damage 1640 | . . . 71 39 25 89 . . . . 250 28 . . . 136 . 114 . . 30 . . . . . 51 413 21 373 Shots 62 | . . . 2 1 1 2 . . . . 12 1 . . . 9 . 2 . . 2 . . . . . 1 8 2 19 Rammed 58 | . 3 . 2 . 3 3 1 21 . . 4 . 1 . . 3 1 3 . . 7 . . . . 5 . 1 . . Targets Rammed 62 | . 3 . 2 . 3 3 1 21 . . 5 . 2 . . 3 1 5 . . 7 . . . . 5 . 1 . . Kicked . | . . . . . . . . . . . . . . . . . . . . . . . . . . . . . . . Crushed 4 | . . . . . . . . . . . 1 . 1 . . . . 2 . . . . . . . . . . . . Highest Temperature 586 | . 168 306 48 243 96 19 . 9 . . 248 . . . . 228 239 227 1 40 367 278 132 244 136 346 137 286 174 586 Average Temperature 92 | . 59 111 14 76 32 11 . 9 . . 97 . . . . 100 116 102 1 22 66 79 27 131 70 86 87 79 37 115 Received Heat Transfer 3580 | . 63 120 189 6 198 594 . 108 . 6 761 . 36 . 36 174 9 27 21 72 396 12 . . 4 162 . 151 96 339 Effects 18 | . . . . . . . . . . . 1 . . . . . . . . . . . . . . . . 2 . 15 Shutdowns 1 | . . . . . . . . . . . . . . . . . . . . . . . . . . . . . . 1 Interference 13 | . . . . . . . . . . . 1 . . . . . . . . . . . . . . . . 2 . 10 Matter Decay 1 | . . . . . . . . . . . . . . . . . . . . . . . . . . . . . . 1 Damage (minor) 2 | . . . . . . . . . . . . . . . . . . . . . . . . . . . . . . 2 Damage (core) 1 | . . . . . . . . . . . . . . . . . . . . . . . . . . . . . . 1 Siege Activations 126 | . . . . . . . . . . . 14 . 1 . . 30 . 1 7 5 21 1 3 . 3 9 1 9 3 18 Total Turns 19233 | . . . . . . . . . . . 5738 . 25 . . 4393 . 8 190 71 790 8 39 . 13 2658 949 155 1311 2885 Longest Duration 1763 | . . . . . . . . . . . 1380 . 25 . . 1472 . 8 128 34 321 8 19 . 7 1763 949 64 1303 1132 Robots Corrupted 15 | . . . . . . . . . . . . . . . . . . . . . . . . . . . . 2 6 7 Combat Hostiles 15 | . . . . . . . . . . . . . . . . . . . . . . . . . . . . 2 6 7 Parts Fried . | . . . . . . . . . . . . . . . . . . . . . . . . . . . . . . . Impact Corruptions 12 | . . . . . . . . 6 . . 1 . 2 . . . . . . . 2 . . . . . . 1 . . Robots Melted 35 | . . . . . 1 1 . . . . 4 . . . . 11 . . . . . . . . . 3 . 6 . 9 Combat Hostiles 28 | . . . . . 1 1 . . . . 1 . . . . 9 . . . . . . . . . 2 . 6 . 8 Parts Melted 5 | . . 1 . . . . . . . . 1 . . . . 3 . . . . . . . . . . . . . . Heat Transferred 43875 | . 827 953 814 814 2960 4439 . 555 . 450 7600 150 850 . 200 7380 300 250 . . 750 . . . 50 4500 . 1918 629 7486 Parts Sabotaged 4 | . . . . . . . . . . . 2 . . . . 1 . . . . . . . . . . . . . 1 Parts Stolen . | . . . . . . . . . . . . . . . . . . . . . . . . . . . . . . . Parts Stripped . | . . . . . . . . . . . . . . . . . . . . . . . . . . . . . . . Power Chain Reactions 1 | . . . . . . . . . . . . . . . . . . . . . . . . . . . . . . 1 Missiles Intercepted . | . . . . . . . . . . . . . . . . . . . . . . . . . . . . . . . Alert | -11 -10 -10 -9 -9 -8 -7 -7 -7 -7 -6 -6 -6 -6 -6 -5 -5 -5 -5 -5 -4 -4 -4 -4 -4 -3 -3 -3 -2 -1 -1 ------- Run | Scr Mat Min Mat Min Mat Fac Low Low Dat Pro Fac Low Low Zio Pro Fac Upp Upp War Pro Fac Upp Upp Zhi Pro Res Tes Res Acc Com Peak Influence 11322 | . 451 444 1667 866 920 2884 . . . . 3912 . . . . 4100 . . . . 2769 . . . . 3952 6662 8121 9710 11322 Initial 6214 | . . 110 94 649 281 391 . . . . . . . . . 30 . . . . 101 . . . . . 2223 3747 4872 6214 Average 2534 | . 290 248 1013 753 647 1068 . . . . 1288 . . . . 1308 . . . . 1116 . . . . 1457 5062 5393 7539 10062 Maximum Alert Level 5 | . 2 2 5 3 3 5 . . . . 5 . . . . 5 . . . . 5 . . . . 5 5 5 5 5 Low Security (%) 6 | 100 27 21 5 . . . . . . . 4 . . . . 7 . . . . 14 . . . . 17 . . . . Level 1 5 | . 51 61 2 . 16 18 . . . . . . . . . 5 . . . . 11 . . . . 7 . . . . Level 2 16 | . 20 16 12 10 31 36 . . . . 28 . . . . 18 . . . . 15 . . . . 22 . . . . Level 3 11 | . . . 29 89 52 9 . . . . 11 . . . . 10 . . . . 14 . . . . 10 . . . . Level 4 18 | . . . 46 . . 4 . . . . 35 . . . . 27 . . . . 12 . . . . 5 . . . . Level 5 14 | . . . 5 . . 9 . . . . 6 . . . . 19 . . . . 19 . . . . 7 4 15 18 41 High Security 27 | . . . . . . 21 . . . . 13 . . . . 9 . . . . 10 . . . . 27 95 84 81 58 Max Security . | . . . . . . . . . . . . . . . . . . . . . . . . . . . . . . . Sterilizations 6 | . . . 1 . . . . . . . 1 . . . . 1 . . . . . . . . . 1 1 . 1 . Squads Dispatched 290 | . 2 . 9 1 4 18 . 1 . . 48 . . . . 45 . . . 1 22 . . . . 29 32 1 40 37 Investigation 9 | . . . . . 2 2 . . . . 1 . . . . . . . . . 1 . . . . 1 . 1 1 . Extermination 27 | . . . . . . 1 . . . . 8 . . . . 7 . . . . 3 . . . . 7 . . 1 . Reinforcement 35 | . 2 . 1 . 2 3 . . . . 6 . . . . 7 . . . . 5 . . . . 4 . . 4 1 Assault 215 | . . . 8 1 . 10 . 1 . . 33 . . . . 29 . . . 1 13 . . . . 17 32 . 34 36 Garrison 4 | . . . . . . 2 . . . . . . . . . 2 . . . . . . . . . . . . . . Intercept . | . . . . . . . . . . . . . . . . . . . . . . . . . . . . . . . Searches Triggered . | . . . . . . . . . . . . . . . . . . . . . . . . . . . . . . . Data Miner Redirects 19 | . . . . . . . . . . . 7 . . . . 9 . . . . 2 . . . . . . . 1 . Construction Impeded 23 | . . . . . . 2 . . . . 6 . . . . 6 . . . . 2 . . . . 3 . . 4 . Haulers Reinforced 2 | . . . . . . 1 . . . . . . . . . . . . . . 1 . . . . . . . . . Active Scanning Responses . | . . . . . . . . . . . . . . . . . . . . . . . . . . . . . . . Cargo Convoy Interrupts 3 | . . . . . . 1 . . . . . . . . . . . . . . 1 . . . . 1 . . . . Stealth | -11 -10 -10 -9 -9 -8 -7 -7 -7 -7 -6 -6 -6 -6 -6 -5 -5 -5 -5 -5 -4 -4 -4 -4 -4 -3 -3 -3 -2 -1 -1 --------- Run | Scr Mat Min Mat Min Mat Fac Low Low Dat Pro Fac Low Low Zio Pro Fac Upp Upp War Pro Fac Upp Upp Zhi Pro Res Tes Res Acc Com Distress Signals 19 | . 1 . 1 . 1 1 . . . . 1 . . . . 1 . . 1 . 3 . . . . 1 . 3 . 5 Communications Jammed . | . . . . . . . . . . . . . . . . . . . . . . . . . . . . . . . Distress Signals . | . . . . . . . . . . . . . . . . . . . . . . . . . . . . . . . Times Spotted 1408 | . 8 6 74 12 33 90 3 16 . 1 166 4 1 . 9 129 3 5 52 14 95 5 5 . 6 116 64 117 129 245 Peak Tracking Total 27 | . 2 3 6 4 6 14 2 5 . 1 14 2 1 . 4 13 2 3 17 5 14 4 2 . 4 13 27 25 18 19 Tactical Retreats 24 | . . . . . . 1 . . . . 1 . . . . 1 . . 3 . 3 . . . . 1 . 6 5 3 Traps | -11 -10 -10 -9 -9 -8 -7 -7 -7 -7 -6 -6 -6 -6 -6 -5 -5 -5 -5 -5 -4 -4 -4 -4 -4 -3 -3 -3 -2 -1 -1 ------- Run | Scr Mat Min Mat Min Mat Fac Low Low Dat Pro Fac Low Low Zio Pro Fac Upp Upp War Pro Fac Upp Upp Zhi Pro Res Tes Res Acc Com Traps Triggered 17 | . 2 . . . . . . . . . 1 . . . . 2 . . . . 3 . . . . 1 . . 4 4 Indirectly 3 | . . . . . . . . . . . . . . . . . . . . . 1 . . . . . . . . 2 Trap Hack Attempts . | . . . . . . . . . . . . . . . . . . . . . . . . . . . . . . . Triggered . | . . . . . . . . . . . . . . . . . . . . . . . . . . . . . . . Disarmed . | . . . . . . . . . . . . . . . . . . . . . . . . . . . . . . . Reprogrammed . | . . . . . . . . . . . . . . . . . . . . . . . . . . . . . . . Reused . | . . . . . . . . . . . . . . . . . . . . . . . . . . . . . . . Traps Extracted . | . . . . . . . . . . . . . . . . . . . . . . . . . . . . . . . Installed . | . . . . . . . . . . . . . . . . . . . . . . . . . . . . . . . Triggered 20 | . . . . . . . . . . 1 . . . . . . 1 . 16 . 1 . . . 1 . . . . . Machines | -11 -10 -10 -9 -9 -8 -7 -7 -7 -7 -6 -6 -6 -6 -6 -5 -5 -5 -5 -5 -4 -4 -4 -4 -4 -3 -3 -3 -2 -1 -1 ---------- Run | Scr Mat Min Mat Min Mat Fac Low Low Dat Pro Fac Low Low Zio Pro Fac Upp Upp War Pro Fac Upp Upp Zhi Pro Res Tes Res Acc Com Machines Disabled 195 | . 11 7 14 . 6 41 . 1 . . 22 . . . . 20 . . 2 2 46 . . . . 1 3 3 7 9 Max in Single Turn 16 | . 3 6 3 . 2 16 . 1 . . 12 . . . . 4 . . 2 2 10 . . . . 1 1 1 1 1 Garrison Access 9 | . . . . . . 1 . . . . 1 . . . . 2 . . . . . . . . . . . 3 2 . Energy Cycler 1 | . . . . . . . . . . . . . . . . . . . . . . . . . . . . . 1 . Machines Sabotaged . | . . . . . . . . . . . . . . . . . . . . . . . . . . . . . . . Overloaded Fab Kills . | . . . . . . . . . . . . . . . . . . . . . . . . . . . . . . . Hacking | -11 -10 -10 -9 -9 -8 -7 -7 -7 -7 -6 -6 -6 -6 -6 -5 -5 -5 -5 -5 -4 -4 -4 -4 -4 -3 -3 -3 -2 -1 -1 --------- Run | Scr Mat Min Mat Min Mat Fac Low Low Dat Pro Fac Low Low Zio Pro Fac Upp Upp War Pro Fac Upp Upp Zhi Pro Res Tes Res Acc Com Machines Accessed 50 | . 3 . 6 . 8 4 . . 4 . 6 . 1 . . . . . 3 . 5 . . 4 . 2 . 1 2 1 Terminals 38 | . 3 . 6 . 8 4 . . . . 6 . . . . . . . . . 5 . . . . 2 . 1 2 1 Fabricators . | . . . . . . . . . . . . . . . . . . . . . . . . . . . . . . . Repair Stations . | . . . . . . . . . . . . . . . . . . . . . . . . . . . . . . . Recycling Units . | . . . . . . . . . . . . . . . . . . . . . . . . . . . . . . . Scanalyzers . | . . . . . . . . . . . . . . . . . . . . . . . . . . . . . . . Garrison Access . | . . . . . . . . . . . . . . . . . . . . . . . . . . . . . . . Total Hacks 162 | . 12 . 20 . 19 14 . . 31 . 13 . 1 . . . . . 8 . 14 . . 17 . 5 . 2 5 1 Successful 111 | . 10 . 13 . 6 4 . . 31 . 7 . 1 . . . . . 8 . 11 . . 17 . 3 . . . . Failed 50 | . 1 . 7 . 13 10 . . . . 6 . . . . . . . . . 3 . . . . 2 . 2 5 1 Catastrophic 8 | . . . 1 . 3 . . . . . 1 . . . . . . . . . 1 . . . . 1 . 1 . . Database Lockouts 1 | . 1 . . . . . . . . . . . . . . . . . . . . . . . . . . . . . Manual 81 | . 11 . 15 . 19 12 . . . . 10 . . . . . . . . . 9 . . . . 3 . 2 . . Terminals 105 | . 12 . 20 . 19 14 . . . . 13 . . . . . . . . . 14 . . . . 5 . 2 5 1 Fabricators . | . . . . . . . . . . . . . . . . . . . . . . . . . . . . . . . Repair Stations . | . . . . . . . . . . . . . . . . . . . . . . . . . . . . . . . Recycling Units . | . . . . . . . . . . . . . . . . . . . . . . . . . . . . . . . Scanalyzers . | . . . . . . . . . . . . . . . . . . . . . . . . . . . . . . . Garrison Access . | . . . . . . . . . . . . . . . . . . . . . . . . . . . . . . . Terminal Hacks 96 | . 7 . 10 . 4 3 . . 31 . 5 . 1 . . . . . 8 . 9 . . 17 . 1 . . . . Record 24 | . . . . . . . . . 11 . . . . . . . . . 8 . . . . 5 . . . . . . Part Schematic 16 | . . . . . . . . . 12 . . . . . . . . . . . . . . 4 . . . . . . Robot Schematic 5 | . . . . . . . . . 5 . . . . . . . . . . . . . . . . . . . . . Robot Analysis 10 | . 1 . 2 . . . . . . . . . . . . . . . . . 3 . . 4 . . . . . . Prototype ID Bank 10 | . . . 2 . . . . . 3 . . . . . . . . . . . 1 . . 4 . . . . . . Open Door 1 | . . . . . . . . . . . . . 1 . . . . . . . . . . . . . . . . . Level Access Points 1 | . . . 1 . . . . . . . . . . . . . . . . . . . . . . . . . . . Branch Access Points 4 | . . . . . . 1 . . . . 1 . . . . . . . . . 1 . . . . 1 . . . . Terminal Index 6 | . 1 . 1 . 1 1 . . . . 1 . . . . . . . . . 1 . . . . . . . . . Alert Level 9 | . 1 . 2 . 2 . . . . . 2 . . . . . . . . . 2 . . . . . . . . . Unreport Threat 1 | . . . . . 1 . . . . . . . . . . . . . . . . . . . . . . . . . Locate Traps 2 | . . . 1 . . 1 . . . . . . . . . . . . . . . . . . . . . . . . Hauler Manifests 1 | . 1 . . . . . . . . . . . . . . . . . . . . . . . . . . . . . Zone Layout 6 | . 3 . 1 . . . . . . . 1 . . . . . . . . . 1 . . . . . . . . . Fabricator Hacks . | . . . . . . . . . . . . . . . . . . . . . . . . . . . . . . . Repair Station Hacks . | . . . . . . . . . . . . . . . . . . . . . . . . . . . . . . . Recycling Unit Hacks . | . . . . . . . . . . . . . . . . . . . . . . . . . . . . . . . Scanalyzer . | . . . . . . . . . . . . . . . . . . . . . . . . . . . . . . . Garrison Access Hacks . | . . . . . . . . . . . . . . . . . . . . . . . . . . . . . . . Unauthorized Hacks 15 | . 3 . 3 . 2 1 . . . . 2 . . . . . . . . . 2 . . . . 2 . . . . Terminals 15 | . 3 . 3 . 2 1 . . . . 2 . . . . . . . . . 2 . . . . 2 . . . . Track 3 | . . . . . . . . . . . 2 . . . . . . . . . . . . . . 1 . . . . Assimilate 1 | . 1 . . . . . . . . . . . . . . . . . . . . . . . . . . . . . Botnet 11 | . 2 . 3 . 2 1 . . . . . . . . . . . . . . 2 . . . . 1 . . . . Fabricators . | . . . . . . . . . . . . . . . . . . . . . . . . . . . . . . . Repair Stations . | . . . . . . . . . . . . . . . . . . . . . . . . . . . . . . . Recycling Units . | . . . . . . . . . . . . . . . . . . . . . . . . . . . . . . . Scanalyzers . | . . . . . . . . . . . . . . . . . . . . . . . . . . . . . . . Garrison Access . | . . . . . . . . . . . . . . . . . . . . . . . . . . . . . . . Data Cores Recovered 1 | . . . . . . . . . . . . . . . . . . . . . 1 . . . . . . . . . Used . | . . . . . . . . . . . . . . . . . . . . . . . . . . . . . . . Hacking Detections 36 | . 3 . 5 . 8 4 . . . . 5 . . . . . . . . . 5 . . . . 2 . 1 2 1 Full Trace Events 8 | . . . . . 2 2 . . . . 1 . . . . . . . . . . . . . . 1 . 1 1 . Feedback Events . | . . . . . . . . . . . . . . . . . . . . . . . . . . . . . . . Feedback Blocked . | . . . . . . . . . . . . . . . . . . . . . . . . . . . . . . . Robot Schematics Acquired 6 | . . . . . . . . . 5 . . . . . . . . . . . . . . . . . 1 . . . Robots Built . | . . . . . . . . . . . . . . . . . . . . . . . . . . . . . . . Authchips . | . . . . . . . . . . . . . . . . . . . . . . . . . . . . . . . Time . | . . . . . . . . . . . . . . . . . . . . . . . . . . . . . . . Total Robot Build Rating . | . . . . . . . . . . . . . . . . . . . . . . . . . . . . . . . Part Schematics Acquired 19 | . . . . . . . . . 12 . . . . . . . . . . . . . . 4 . . 3 . . . Parts Built . | . . . . . . . . . . . . . . . . . . . . . . . . . . . . . . . Authchips . | . . . . . . . . . . . . . . . . . . . . . . . . . . . . . . . Time . | . . . . . . . . . . . . . . . . . . . . . . . . . . . . . . . Total Part Build Rating . | . . . . . . . . . . . . . . . . . . . . . . . . . . . . . . . Parts Repaired . | . . . . . . . . . . . . . . . . . . . . . . . . . . . . . . . Time . | . . . . . . . . . . . . . . . . . . . . . . . . . . . . . . . Parts Recycled . | . . . . . . . . . . . . . . . . . . . . . . . . . . . . . . . Recycled Matter . | . . . . . . . . . . . . . . . . . . . . . . . . . . . . . . . Retrieved Matter . | . . . . . . . . . . . . . . . . . . . . . . . . . . . . . . . Retrieved Components . | . . . . . . . . . . . . . . . . . . . . . . . . . . . . . . . Parts Scanalyzed . | . . . . . . . . . . . . . . . . . . . . . . . . . . . . . . . Part Schematics Acquired . | . . . . . . . . . . . . . . . . . . . . . . . . . . . . . . . Parts Damaged . | . . . . . . . . . . . . . . . . . . . . . . . . . . . . . . . Bothacking | -11 -10 -10 -9 -9 -8 -7 -7 -7 -7 -6 -6 -6 -6 -6 -5 -5 -5 -5 -5 -4 -4 -4 -4 -4 -3 -3 -3 -2 -1 -1 ------------ Run | Scr Mat Min Mat Min Mat Fac Low Low Dat Pro Fac Low Low Zio Pro Fac Upp Upp War Pro Fac Upp Upp Zhi Pro Res Tes Res Acc Com Used RIF Installer . | . . . . . . . . . . . . . . . . . . . . . . . . . . . . . . . Robots Hacked . | . . . . . . . . . . . . . . . . . . . . . . . . . . . . . . . Non-combat . | . . . . . . . . . . . . . . . . . . . . . . . . . . . . . . . Combat . | . . . . . . . . . . . . . . . . . . . . . . . . . . . . . . . Robot Hacks Applied . | . . . . . . . . . . . . . . . . . . . . . . . . . . . . . . . Relay Couplers Released 15 | . . . . . . 2 . . . . 4 . . . . 3 . . . . . . . . . . . 4 2 . Machine Destruction 15 | . . . . . . 2 . . . . 4 . . . . 3 . . . . . . . . . . . 4 2 . Fabnet Peak Effective % . | . . . . . . . . . . . . . . . . . . . . . . . . . . . . . . . Robots Rewired 4 | . . . . . . . . 2 . . . . . . . . . . . 1 . . . . . . 1 . . . Allies Hacked . | . . . . . . . . . . . . . . . . . . . . . . . . . . . . . . . Hacks Repelled . | . . . . . . . . . . . . . . . . . . . . . . . . . . . . . . . Allies | -11 -10 -10 -9 -9 -8 -7 -7 -7 -7 -6 -6 -6 -6 -6 -5 -5 -5 -5 -5 -4 -4 -4 -4 -4 -3 -3 -3 -2 -1 -1 -------- Run | Scr Mat Min Mat Min Mat Fac Low Low Dat Pro Fac Low Low Zio Pro Fac Upp Upp War Pro Fac Upp Upp Zhi Pro Res Tes Res Acc Com Total Allies 14 | . . . . 4 . . . 2 . 1 . . . 5 . . . . . 1 . . . . . . 1 . . . Largest Group 5 | . . . . 4 . . . 2 1 2 2 . . 5 5 . . . . 1 . . . . . . 1 . . . Highest-Rated Group 126 | . . . . 71 . . . 62 30 126 123 . . 121 121 . . . . 47 . . . . . . 122 . . . Highest-Rated Ally 122 | . . . . 31 . . . 32 30 96 96 . . 31 31 . . . . 47 . . . . . . 122 . . . Total Orders 1 | . . . . . . . . . . . . . . . . . . . . . . . . . . . 1 . . . STAY 1 | . . . . . . . . . . . . . . . . . . . . . . . . . . . 1 . . . Ally Attacks 116 | . . . . 32 . . . 9 . . 16 . . . 30 . . . . 2 . . . . . . 27 . . . Total Damage 8780 | . . . . 472 . . . 178 . . 1243 . . . 338 . . . . 18 . . . . . . 6531 . . . Kills 41 | . . . . 4 . . . 1 . . 5 . . . 4 . . . . . . . . . . . 27 . . . Allies Corrupted 2 | . . . . 1 . . . . . . . . . . . . . . . . . . . . . . 1 . . . Allies Melted . | . . . . . . . . . . . . . . . . . . . . . . . . . . . . . . . Intel | -11 -10 -10 -9 -9 -8 -7 -7 -7 -7 -6 -6 -6 -6 -6 -5 -5 -5 -5 -5 -4 -4 -4 -4 -4 -3 -3 -3 -2 -1 -1 ------- Run | Scr Mat Min Mat Min Mat Fac Low Low Dat Pro Fac Low Low Zio Pro Fac Upp Upp War Pro Fac Upp Upp Zhi Pro Res Tes Res Acc Com Robot Analysis Total 10 | . 1 . 2 . . . . . . . . . . . . . . . . . 3 . . 4 . . . . . . Derelict Logs Recovered . | . . . . . . . . . . . . . . . . . . . . . . . . . . . . . . . Drone Launches . | . . . . . . . . . . . . . . . . . . . . . . . . . . . . . . . Drone Recoveries . | . . . . . . . . . . . . . . . . . . . . . . . . . . . . . . . Exploration | -11 -10 -10 -9 -9 -8 -7 -7 -7 -7 -6 -6 -6 -6 -6 -5 -5 -5 -5 -5 -4 -4 -4 -4 -4 -3 -3 -3 -2 -1 -1 ------------- Run | Scr Mat Min Mat Min Mat Fac Low Low Dat Pro Fac Low Low Zio Pro Fac Upp Upp War Pro Fac Upp Upp Zhi Pro Res Tes Res Acc Com Turns Passed 48811 | 28 823 574 4315 486 728 1449 493 785 133 763 7087 885 511 1545 596 6632 423 592 1517 450 2414 404 522 232 885 4221 1506 880 2894 4038 Spaces Moved 12381 | 18 389 268 430 235 329 609 278 405 83 311 548 386 285 959 322 626 216 300 507 182 785 242 307 139 496 586 210 359 863 708 Core . | . . . . . . . . . . . . . . . . . . . . . . . . . . . . . . . Treads 12120 | 18 389 268 430 235 329 609 278 405 83 311 548 386 285 959 322 626 216 300 507 182 785 242 307 139 496 586 210 359 863 447 Legs . | . . . . . . . . . . . . . . . . . . . . . . . . . . . . . . . Wheels . | . . . . . . . . . . . . . . . . . . . . . . . . . . . . . . . Hover . | . . . . . . . . . . . . . . . . . . . . . . . . . . . . . . . Flight 261 | . . . . . . . . . . . . . . . . . . . . . . . . . . . . . . 261 Fastest Speed 6 | 160 160 160 160 160 160 160 160 160 160 160 160 160 160 160 160 180 180 180 180 145 145 145 145 145 157 165 250 160 160 6 Average Speed 160 | 160 160 160 160 160 160 160 160 160 160 160 160 160 160 160 160 180 180 180 180 145 145 145 145 156 163 185 250 161 160 110 Slowest Speed 250 | 160 160 160 160 160 160 160 160 160 160 160 160 160 160 160 160 180 180 180 180 145 145 145 145 157 165 250 250 250 160 250 Overloaded Moves 20 | . . . . . . . . . . . . . . . . . . . . . . . . . . . . . . 20 Propulsion Burnouts . | . . . . . . . . . . . . . . . . . . . . . . . . . . . . . . . Robots Hopped 1 | . . . . . . . . . . . . . . . . . . . . . . . . . . . . . . 1 Cave-ins Triggered . | . . . . . . . . . . . . . . . . . . . . . . . . . . . . . . . Exploration Rate (%) 47 | 4 72 53 49 65 59 24 56 54 70 53 13 66 41 85 59 13 47 59 52 45 31 59 56 59 57 17 52 21 35 38 Regions Visited 30 Branch Regions 20 Pre-discovered Areas 5 | . . . . . . . . . 1 . . . . 1 . . . . . . . . . 3 . . . . . . Known Exits Taken 25 | . . . . 1 . 1 1 1 1 1 1 1 1 1 1 1 1 1 1 1 1 1 1 1 1 1 1 1 1 . Unknown Exits Taken 5 | 1 1 1 1 . 1 . . . . . . . . . . . . . . . . . . . . . . . . . Scrap Searched . | . . . . . . . . . . . . . . . . . . . . . . . . . . . . . . . Spaces Dug 594 | . . . 18 18 1 23 67 7 . . 64 . 12 . . 90 . 4 . 37 2 4 6 . . 4 . 67 21 149 Terrain Destroyed 9731 | . 79 23 270 25 48 428 131 106 . 3 892 62 12 . 110 996 100 146 195 112 291 30 52 . 106 894 283 692 619 3026 Melee . | . . . . . . . . . . . . . . . . . . . . . . . . . . . . . . . Projectile 466 | . . . . 2 11 16 . 3 . 3 60 3 12 . 4 14 2 4 . 28 123 14 31 . 11 35 . 22 17 51 AOE 9265 | . 79 23 270 23 37 412 131 103 . . 832 59 . . 106 982 98 142 195 84 168 16 21 . 95 859 283 670 602 2975 Terrain Rammed . | . . . . . . . . . . . . . . . . . . . . . . . . . . . . . . . Walls Destroyed . | . . . . . . . . . . . . . . . . . . . . . . . . . . . . . . . Machines Disabled . | . . . . . . . . . . . . . . . . . . . . . . . . . . . . . . . Actions | -11 -10 -10 -9 -9 -8 -7 -7 -7 -7 -6 -6 -6 -6 -6 -5 -5 -5 -5 -5 -4 -4 -4 -4 -4 -3 -3 -3 -2 -1 -1 --------- Run | Scr Mat Min Mat Min Mat Fac Low Low Dat Pro Fac Low Low Zio Pro Fac Upp Upp War Pro Fac Upp Upp Zhi Pro Res Tes Res Acc Com Total 39211 | 17 485 379 3933 303 437 866 309 492 85 568 6368 645 314 970 386 5969 246 338 1078 338 1788 284 369 153 565 3655 1192 634 2339 3706 Wait 23868 | . 37 94 3434 40 56 90 10 18 . 251 5554 253 17 6 45 5023 9 16 539 109 800 16 43 3 36 2775 884 63 1251 2396 Move 12350 | 17 388 267 429 234 328 608 277 404 82 310 547 385 284 958 321 625 215 299 506 181 785 241 306 138 495 585 209 358 862 706 Hop 1 | . . . . . . . . . . . . . . . . . . . . . . . . . . . . . . 1 Pick Up 96 | . . 1 2 . 1 5 1 3 . . 17 . . . 1 13 3 2 3 2 2 1 . . 5 9 2 5 6 12 Fast Attach 34 | . . . . . . 1 . . . . 1 . . 3 . 3 1 . . . 1 . . 6 2 4 . 3 1 8 Attach 65 | . . . 2 . . 2 1 1 . . 1 . . . . 3 1 1 4 3 4 1 1 . 5 9 . 9 3 14 Detach 12 | . . . 1 . . 1 . . . . . . . . . . . . . . . . . . . 1 . 4 1 4 Swap 258 | . . . 2 6 4 30 8 13 . 1 63 4 . . 1 48 . 4 1 9 35 7 6 . . 5 . 1 3 7 Drop 184 | . . . 3 1 2 8 2 4 3 2 23 . . 3 5 21 4 2 5 8 3 5 1 6 11 15 2 16 9 20 Fire 2242 | . 57 17 58 22 43 118 9 15 . 4 157 3 11 . 13 230 12 9 20 20 152 13 12 . 11 247 84 168 199 538 Melee . | . . . . . . . . . . . . . . . . . . . . . . . . . . . . . . . Ram . | . . . . . . . . . . . . . . . . . . . . . . . . . . . . . . . Kick . | . . . . . . . . . . . . . . . . . . . . . . . . . . . . . . . Crush 61 | . 3 . 2 . 3 3 1 21 . . 5 . 2 . . 3 1 5 . . 6 . . . . 5 . 1 . . Escape Stasis 16 | . . . . . . . . . . . . . . . . . . . . . . . . . . . 6 6 4 . Rewire 24 | . . . . . . . . 13 . . . . . . . . . . . 6 . . . . . . 5 . . . Trap . | . . . . . . . . . . . . . . . . . . . . . . . . . . . . . . . Miscellaneous . | . . . . . . . . . . . . . . . . . . . . . . . . . . . . . . . Route ------- -11/Scrapyard -10/Materials (discovered 4 exits: *Mat x3 / [*Min]) -10/Mines -9/Materials (discovered 4 exits: Mat x3 / [*Min]) -9/Mines -8/Materials -7/Factory (discovered 3 exits: *Fac / *Low x2) -7/Lower Caves (discovered 2 exits: *Low / *Zio) -7/Lower Caves (discovered 2 exits: *Fac / *Dat) -7/Data Miner -6/Proximity Caves -6/Factory (discovered 4 exits: *Low x2 / Ext x2) -6/Lower Caves -6/Lower Caves -6/Zion -5/Proximity Caves -5/Factory -5/Upper Caves -5/Upper Caves -5/Warlord -4/Proximity Caves -4/Factory (discovered 3 exits: *Res / *Upp x2) -4/Upper Caves -4/Upper Caves -4/Zhirov -3/Proximity Caves -3/Research (discovered 4 exits: Res / Arm / *Tes x2) -3/Testing -2/Research -1/Access -1/Command History --------- Turn | Location | Event 9 | -11/Scrapyard | Discovered new exit (range 13) 29 | -11/Scrapyard | Entered Materials 257 | -10/Materials | Discovered new exit (range 16) 315 | -10/Materials | Build established: Mutant 371 | -10/Materials | Discovered new exit (range 6) 470 | -10/Materials | Discovered new exit (range 19) 690 | -10/Materials | Discovered new exit (range 15) 691 | -10/Materials | Central database locked down 852 | -10/Materials | Entered Mines 1031 | -10/Mines | Discovered new exit (range 16) 1045 | -10/Mines | Received a Rocket Launcher from a helpful Derelict 1204 | -10/Mines | Assembled infested the area 1426 | -10/Mines | Entered Materials 1426 | -9/Materials | Evolved 2 slots: Utility x1, Weapon x1 1639 | -9/Materials | Discovered new exit (range 12) 1968 | -9/Materials | Identified exit to Materials 2226 | -9/Materials | First assault squad dispatched 2568 | -9/Materials | Build established: Tank 3170 | -9/Materials | Destroyed 7 combat bots 4468 | -9/Materials | Build established: Bomber 5417 | -9/Materials | Found Launcher Loader 5488 | -9/Materials | Sterilization system engaged 5488 | -9/Materials | Non-combat units ordered to evacuate 5588 | -9/Materials | Combat units ordered to evacuate 5741 | -9/Materials | Entered Mines 5824 | -9/Mines | Destroyed YI-UF0 5984 | -9/Mines | Assisted by bots powering up and referring to "LRC-V3" 6014 | -9/Mines | Met a Derelict testing a Signal Generator 6014 | -9/Mines | Discovered exit to Materials (range 3) 6138 | -9/Mines | Excavation squad dispatched 6138 | -9/Mines | A large section of the Mines collapsed 6227 | -9/Mines | Entered Materials 6227 | -8/Materials | Evolved 2 slots: Propulsion x1, Utility x1 6393 | -8/Materials | Destroyed 7 combat bots 6895 | -8/Materials | Discovered new exit (range 4) 6955 | -8/Materials | Entered Factory 6955 | -7/Factory | Evolved 2 slots: Utility x2 7251 | -7/Factory | Garrison activated, responded to threat 7442 | -7/Factory | Build established: Skirmisher 7705 | -7/Factory | Identified exit to Lower Caves 7733 | -7/Factory | Garrison activated, responded to threat 7755 | -7/Factory | First assault squad dispatched 7767 | -7/Factory | Destroyed 8 combat bots 7806 | -7/Factory | Discovered new exit (range 15) 7828 | -7/Factory | Identified exit to Factory 7927 | -7/Factory | Destroyed 12 combat bots 7956 | -7/Factory | Cargo convoy interrupted 7983 | -7/Factory | Destroyed 10 combat bots 8094 | -7/Factory | High security lockdown imminent 8174 | -7/Factory | High security lockdown engaged 8331 | -7/Factory | Destroyed 19 combat bots 8397 | -7/Factory | Build established: Mutant 8404 | -7/Factory | Entered Lower Caves 8630 | -7/Lower Caves | A Derelict revealed a hidden shortcut to a safe place 8637 | -7/Lower Caves | Identified exit to Zion 8788 | -7/Lower Caves | Discovered new exit (range 9) 8804 | -7/Lower Caves | Identified exit to Lower Caves 8851 | -7/Lower Caves | Encountered a Warlord checkpoint 8859 | -7/Lower Caves | Build established: Skirmisher 8897 | -7/Lower Caves | Entered another Lower Caves area 9035 | -7/Lower Caves | Discovered exit to Factory (range 6) 9423 | -7/Lower Caves | Attracted the attention of an 0b10 outpost 9448 | -7/Lower Caves | Found Sigix Terminator 9492 | -7/Lower Caves | Spotted B-75 Beast 9624 | -7/Lower Caves | Discovered new exit (range 16) 9649 | -7/Lower Caves | Identified exit to Data Miner 9682 | -7/Lower Caves | Entered Data Miner 9682 | -7/Data Miner | Accompanied by 1 ally 9682 | -7/Data Miner | Discovered new exit (range 7) 9713 | -7/Data Miner | Met Data Miner 9739 | -7/Data Miner | Build established: Mutant 9746 | -7/Data Miner | Learned location of Section 7 (-2) 9746 | -7/Data Miner | Acquired the access code to Warlord's prototype stash 9770 | -7/Data Miner | Received God Mode back door access code from Data Miner 9812 | -7/Data Miner | Identified exit to Proximity Caves 9815 | -7/Data Miner | Entered Proximity Caves 9815 | -6/Proximity Caves | Accompanied by 1 ally 9884 | -6/Proximity Caves | Escorted by Enhanced Grunt 9967 | -6/Proximity Caves | Attracted the attention of an 0b10 checkpoint 10278 | -6/Proximity Caves | Build established: Skirmisher 10291 | -6/Proximity Caves | Discovered exit to Factory (range 9) 10472 | -6/Proximity Caves | Received a Behemoth hack from an annoying Tinkerer 10578 | -6/Proximity Caves | Entered Factory 10578 | -6/Factory | Accompanied by 2 allies 10578 | -6/Factory | Evolved 2 slots: Propulsion x1, Utility x1 10700 | -6/Factory | Found Mni. Smartbomb Launcher 10890 | -6/Factory | Spotted B-75 Beast 10896 | -6/Factory | Destroyed B-75 Beast 10964 | -6/Factory | Destroyed 8 combat bots 10990 | -6/Factory | Identified exit to Lower Caves 10990 | -6/Factory | Identified exit to Extension 11628 | -6/Factory | First assault squad dispatched 11644 | -6/Factory | Incoming assault squad redirected 11655 | -6/Factory | Found Rocket Array 11772 | -6/Factory | Found Blast Cannon 13757 | -6/Factory | Incoming assault squad redirected 14048 | -6/Factory | Build established: Mutant 14447 | -6/Factory | Incoming assault squad redirected 14449 | -6/Factory | Incoming assault squad redirected 15245 | -6/Factory | Destroyed 7 combat bots 15846 | -6/Factory | Incoming assault squad redirected 15851 | -6/Factory | Incoming assault squad redirected 16442 | -6/Factory | Build established: Skirmisher 16550 | -6/Factory | Incoming assault squad redirected 16673 | -6/Factory | High security lockdown imminent 16691 | -6/Factory | Found Rocket Array 16696 | -6/Factory | Destroyed 7 combat bots 16753 | -6/Factory | High security lockdown engaged 16845 | -6/Factory | Build established: Mutant 16962 | -6/Factory | Destroyed 26 combat bots 17133 | -6/Factory | Destroyed 7 combat bots 17201 | -6/Factory | Destroyed 14 combat bots 17250 | -6/Factory | Sterilization system engaged 17250 | -6/Factory | Non-combat units ordered to evacuate 17315 | -6/Factory | Destroyed 9 combat bots 17350 | -6/Factory | Combat units ordered to evacuate 17385 | -6/Factory | Destroyed 16 combat bots 17550 | -6/Factory | Ambient heat levels rising (+10) 17665 | -6/Factory | Entered Lower Caves 17694 | -6/Lower Caves | Build established: Skirmisher 17744 | -6/Lower Caves | Encountered a Warlord checkpoint 18113 | -6/Lower Caves | Discovered new exit (range 14) 18132 | -6/Lower Caves | Identified exit to Lower Caves 18550 | -6/Lower Caves | Entered another Lower Caves area 18586 | -6/Lower Caves | Encountered a Warlord checkpoint 18631 | -6/Lower Caves | Spotted B-75 Beast 18660 | -6/Lower Caves | Destroyed B-75 Beast 18989 | -6/Lower Caves | Discovered exit to Zion (range 10) 19061 | -6/Lower Caves | Entered Zion 19111 | -6/Zion | System corruption cleaned by Quarantine Array 19255 | -6/Zion | Given the Hacking Drone Bay 19255 | -6/Zion | Discovered new exit (range 16) 20129 | -6/Zion | Gained Derelict followers 20600 | -6/Zion | Identified exit to Proximity Caves 20606 | -6/Zion | Entered Proximity Caves 20606 | -5/Proximity Caves | Accompanied by 5 allies 21035 | -5/Proximity Caves | Build established: Mutant 21175 | -5/Proximity Caves | Discovered new exit (range 14) 21196 | -5/Proximity Caves | Identified exit to Factory 21202 | -5/Proximity Caves | Entered Factory 21202 | -5/Factory | Evolved 2 slots: Utility x2 21591 | -5/Factory | Discovered new exit (range 15) 21615 | -5/Factory | Identified exit to Upper Caves 21809 | -5/Factory | Found Rocket Array 23241 | -5/Factory | Garrison activated, responded to threat 23427 | -5/Factory | Incoming assault squad redirected 23902 | -5/Factory | First assault squad dispatched 24256 | -5/Factory | Found Quantum Capacitor 24519 | -5/Factory | Incoming assault squad redirected 24866 | -5/Factory | Incoming assault squad redirected 25128 | -5/Factory | Incoming assault squad redirected 25128 | -5/Factory | Incoming assault squad redirected 25726 | -5/Factory | Incoming assault squad redirected 26325 | -5/Factory | Incoming assault squad redirected 26625 | -5/Factory | Incoming assault squad redirected 26630 | -5/Factory | Incoming assault squad redirected 26993 | -5/Factory | Destroyed 10 combat bots 27179 | -5/Factory | High security lockdown imminent 27259 | -5/Factory | High security lockdown engaged 27425 | -5/Factory | Destroyed 15 combat bots 27479 | -5/Factory | Destroyed 10 combat bots 27487 | -5/Factory | Build established: Tank 27648 | -5/Factory | Destroyed 18 combat bots 27689 | -5/Factory | Sterilization system engaged 27689 | -5/Factory | Non-combat units ordered to evacuate 27701 | -5/Factory | Destroyed 10 combat bots 27789 | -5/Factory | Combat units ordered to evacuate 27834 | -5/Factory | Entered Upper Caves 28117 | -5/Upper Caves | Build established: Mutant 28241 | -5/Upper Caves | Discovered new exit (range 10) 28255 | -5/Upper Caves | Identified exit to Upper Caves 28257 | -5/Upper Caves | Entered another Upper Caves area 28297 | -5/Upper Caves | Destroyed 8 combat bots 28313 | -5/Upper Caves | Encountered a Warlord checkpoint 28605 | -5/Upper Caves | Attracted the attention of an 0b10 checkpoint 28780 | -5/Upper Caves | Discovered new exit (range 11) 28796 | -5/Upper Caves | Identified exit to Warlord 28849 | -5/Upper Caves | Entered Warlord 28893 | -5/Warlord | Build established: Gunner 28911 | -5/Warlord | System corruption cleaned by Quarantine Array 28972 | -5/Warlord | Learned Research security intel 28972 | -5/Warlord | Learned Factory scanalyzer intel 28972 | -5/Warlord | Learned Research fabricator intel 28972 | -5/Warlord | Learned 4 Research zone layouts 28972 | -5/Warlord | Learned Armory trap positions 28972 | -5/Warlord | Learned Testing emergency access door positions 28972 | -5/Warlord | Learned Quarantine stockpile data 29452 | -5/Warlord | Met Warlord 29477 | -5/Warlord | Warlord's base attacked by MAIN.C 29667 | -5/Warlord | Destroyed 8 combat bots 29827 | -5/Warlord | Warlord forces counterattacked 29830 | -5/Warlord | Destroyed Executioner 29833 | -5/Warlord | Destroyed Executioner 29854 | -5/Warlord | Destroyed 17 combat bots 29923 | -5/Warlord | Build established: Tank 30097 | -5/Warlord | Spotted Striker 30149 | -5/Warlord | Spotted Executioner 30152 | -5/Warlord | Warlord base infiltrated, sounded retreat 30152 | -5/Warlord | Destroyed Executioner 30173 | -5/Warlord | Destroyed 7 combat bots 30229 | -5/Warlord | Spotted B-86 Titan 30231 | -5/Warlord | Destroyed B-86 Titan 30283 | -5/Warlord | Spotted Striker 30284 | -5/Warlord | Spotted Striker 30287 | -5/Warlord | Spotted Striker 30340 | -5/Warlord | Discovered new exit (range 14) 30359 | -5/Warlord | Identified exit to Proximity Caves 30366 | -5/Warlord | Entered Proximity Caves 30372 | -4/Proximity Caves | Found Centrium Heavy Armor Plating 30534 | -4/Proximity Caves | Attracted the attention of an 0b10 outpost 30559 | -4/Proximity Caves | Destroyed 10 combat bots 30685 | -4/Proximity Caves | Attracted the attention of an 0b10 checkpoint 30787 | -4/Proximity Caves | Discovered new exit (range 14) 30805 | -4/Proximity Caves | Identified exit to Factory 30816 | -4/Proximity Caves | Entered Factory 30816 | -4/Factory | Evolved 2 slots: Power x1, Weapon x1 30817 | -4/Factory | Loaded intel: 4 scanalyzer locations 31080 | -4/Factory | Discovered new exit (range 16) 31102 | -4/Factory | Identified exit to Research 31165 | -4/Factory | Identified exit to Upper Caves 31393 | -4/Factory | Spotted B-86 Titan 31406 | -4/Factory | Destroyed B-86 Titan 31938 | -4/Factory | Cargo convoy interrupted 32008 | -4/Factory | Build established: Gunner 32066 | -4/Factory | First assault squad dispatched 32159 | -4/Factory | Incoming investigation squad redirected 32275 | -4/Factory | Destroyed 7 combat bots 32840 | -4/Factory | Incoming assault squad redirected 32965 | -4/Factory | High security lockdown imminent 32999 | -4/Factory | Destroyed 9 combat bots 33045 | -4/Factory | High security lockdown engaged 33230 | -4/Factory | Entered Upper Caves 33235 | -4/Upper Caves | Found Centrium Heavy Armor Plating 33249 | -4/Upper Caves | Destroyed 10 combat bots 33323 | -4/Upper Caves | Build established: Mutant 33379 | -4/Upper Caves | Found Adv. Micro-nuke Launcher 33381 | -4/Upper Caves | Found Adv. Micro-nuke Launcher 33466 | -4/Upper Caves | Attracted the attention of an 0b10 checkpoint 33618 | -4/Upper Caves | Discovered new exit (range 11) 33632 | -4/Upper Caves | Identified exit to Upper Caves 33634 | -4/Upper Caves | Entered another Upper Caves area 33778 | -4/Upper Caves | Found Adv. Micro-nuke Launcher 33810 | -4/Upper Caves | Spotted B-86 Titan 33859 | -4/Upper Caves | Encountered a Warlord checkpoint 34138 | -4/Upper Caves | Discovered new exit (range 10) 34151 | -4/Upper Caves | Identified exit to Zhirov 34156 | -4/Upper Caves | Entered Zhirov 34160 | -4/Zhirov | Discovered new exit (range 5) 34195 | -4/Zhirov | Met Zhirov 34267 | -4/Zhirov | Learned location of Quarantine (-2) 34267 | -4/Zhirov | Learned location of Testing (-3) 34267 | -4/Zhirov | Learned location of Command (-1) 34281 | -4/Zhirov | Zhirov requested help retrieving the SGEMP Prototype 34386 | -4/Zhirov | Identified exit to Proximity Caves 34388 | -4/Zhirov | Entered Proximity Caves 34529 | -3/Proximity Caves | Found Null Cannon 34544 | -3/Proximity Caves | Found Launcher Loader 34553 | -3/Proximity Caves | Found Exp. Force Field 34556 | -3/Proximity Caves | Found Exp. Force Field 35163 | -3/Proximity Caves | Attracted the attention of an 0b10 checkpoint 35255 | -3/Proximity Caves | Discovered exit to Research (range 7) 35273 | -3/Proximity Caves | Entered Research 35273 | -3/Research | Evolved 2 slots: Utility x2 35273 | -3/Research | Found Quantum Capacitor 35274 | -3/Research | Identified exit to Research 35276 | -3/Research | Loaded intel: 4 fabricator locations 35530 | -3/Research | Identified exit to Armory 35530 | -3/Research | Identified exit to Testing 37815 | -3/Research | First assault squad dispatched 37827 | -3/Research | System corruption reached 10% 38315 | -3/Research | Cargo convoy interrupted 38315 | -3/Research | Spotted Executioner 38316 | -3/Research | Destroyed Executioner 38316 | -3/Research | High security lockdown imminent 38340 | -3/Research | Destroyed 13 combat bots 38396 | -3/Research | High security lockdown engaged 38467 | -3/Research | Destroyed 10 combat bots 38494 | -3/Research | Destroyed 13 combat bots 38540 | -3/Research | Destroyed Investigator 38673 | -3/Research | Destroyed 9 combat bots 38725 | -3/Research | Destroyed Executioner 38729 | -3/Research | Sterilization system engaged 38729 | -3/Research | Non-combat units ordered to evacuate 38746 | -3/Research | Destroyed 9 combat bots 38807 | -3/Research | Destroyed Investigator 38829 | -3/Research | Combat units ordered to evacuate 38830 | -3/Research | Destroyed 16 combat bots 39029 | -3/Research | Ambient heat levels rising (+10) 39179 | -3/Research | Ambient heat levels rising (+10) 39329 | -3/Research | Ambient heat levels rising (+10) 39479 | -3/Research | Ambient heat levels rising (+10) 39494 | -3/Research | Entered Testing 39499 | -3/Testing | Spotted PD-TBMHXJVC9M 39518 | -3/Testing | Rewired PD-TBMHXJVC9M 39561 | -3/Testing | High security lockdown imminent 39641 | -3/Testing | High security lockdown engaged 39745 | -3/Testing | Destroyed 20 combat bots 39801 | -3/Testing | Spotted Investigator 39803 | -3/Testing | Destroyed Investigator 39823 | -3/Testing | Destroyed Executioner 39847 | -3/Testing | Destroyed 15 combat bots 39968 | -3/Testing | Spotted Executioner 39968 | -3/Testing | Spotted Striker 39968 | -3/Testing | Destroyed Striker 39970 | -3/Testing | Destroyed Executioner 39971 | -3/Testing | Allies destroyed Executioner 39994 | -3/Testing | Destroyed 18 combat bots 40137 | -3/Testing | Spotted Striker 40137 | -3/Testing | Destroyed Striker 40139 | -3/Testing | Destroyed Striker 40161 | -3/Testing | Destroyed 18 combat bots 40170 | -3/Testing | Spotted Executioner 40170 | -3/Testing | Destroyed Executioner 40199 | -3/Testing | Destroyed 12 combat bots 40387 | -3/Testing | Spotted Investigator 40387 | -3/Testing | Scanned by Researcher 40387 | -3/Testing | Destroyed Investigator 40389 | -3/Testing | Spotted Striker 40389 | -3/Testing | Destroyed Striker 40391 | -3/Testing | Destroyed Striker 40405 | -3/Testing | Sterilization system engaged 40405 | -3/Testing | Non-combat units ordered to evacuate 40450 | -3/Testing | Destroyed 36 combat bots 40505 | -3/Testing | Combat units ordered to evacuate 40705 | -3/Testing | Ambient heat levels rising (+10) 40855 | -3/Testing | Ambient heat levels rising (+10) 40958 | -3/Testing | Discovered exit to Research (range 10) 41000 | -3/Testing | Entered Research 41000 | -2/Research | Warlord forces began assault on 0b10 41000 | -2/Research | Evolved 2 slots: Power x1, Utility x1 41000 | -2/Research | Found Zero-point Reactor 41001 | -2/Research | Identified exit to Access 41110 | -2/Research | Research machine network offline 41138 | -2/Research | High security lockdown imminent 41218 | -2/Research | High security lockdown engaged 41252 | -2/Research | Spotted B-90 Cyclops 41255 | -2/Research | Destroyed B-90 Cyclops 41279 | -2/Research | Spotted Executioner 41285 | -2/Research | Spotted Executioner 41288 | -2/Research | Borebot progress halted 41308 | -2/Research | Destroyed Executioner 41329 | -2/Research | Destroyed 13 combat bots 41415 | -2/Research | Borebot progress halted 41462 | -2/Research | Spotted Investigator 41464 | -2/Research | Destroyed Investigator 41492 | -2/Research | Spotted Striker 41497 | -2/Research | Destroyed Striker 41497 | -2/Research | Spotted Executioner 41498 | -2/Research | Spotted Executioner 41500 | -2/Research | Spotted Executioner 41505 | -2/Research | Destroyed Executioner 41508 | -2/Research | Destroyed Executioner 41514 | -2/Research | Destroyed Executioner 41515 | -2/Research | Borebot progress halted 41548 | -2/Research | Spotted Executioner 41555 | -2/Research | Warlord destroyed during the assault 41555 | -2/Research | Destroyed Executioner 41588 | -2/Research | Destroyed 27 combat bots 41632 | -2/Research | Spotted Striker 41633 | -2/Research | Destroyed Striker 41663 | -2/Research | Destroyed Striker 41666 | -2/Research | Destroyed Executioner 41703 | -2/Research | Spotted Striker 41705 | -2/Research | Spotted Striker 41706 | -2/Research | Destroyed Executioner 41707 | -2/Research | Destroyed Striker 41714 | -2/Research | Spotted Striker 41716 | -2/Research | Spotted Striker 41716 | -2/Research | Spotted Executioner 41717 | -2/Research | Destroyed Striker 41717 | -2/Research | Spotted Executioner 41718 | -2/Research | Destroyed Executioner 41723 | -2/Research | Spotted Executioner 41724 | -2/Research | System corruption reached 10% 41727 | -2/Research | Destroyed Striker 41729 | -2/Research | Destroyed Executioner 41748 | -2/Research | Destroyed Striker 41760 | -2/Research | Destroyed Executioner 41785 | -2/Research | Lost 8 parts (6u2w) 41787 | -2/Research | Destroyed 40 combat bots 41880 | -2/Research | Entered Access 41880 | -1/Access | Evolved 2 slots: Utility x2 42130 | -1/Access | First assault squad dispatched 42157 | -1/Access | Incoming assault squad redirected 42406 | -1/Access | High security lockdown imminent 42486 | -1/Access | High security lockdown engaged 42657 | -1/Access | Spotted Striker 42658 | -1/Access | Spotted Striker 42660 | -1/Access | Spotted Executioner 42660 | -1/Access | Destroyed Executioner 42661 | -1/Access | Destroyed Striker 42662 | -1/Access | Destroyed Striker 42664 | -1/Access | Spotted Striker 42664 | -1/Access | Destroyed Striker 42722 | -1/Access | Destroyed 17 combat bots 42791 | -1/Access | Destroyed Investigator 42830 | -1/Access | Destroyed 14 combat bots 42958 | -1/Access | Destroyed 10 combat bots 42971 | -1/Access | Spotted Executioner 42972 | -1/Access | Destroyed Striker 42973 | -1/Access | Spotted Striker 42974 | -1/Access | Destroyed Striker 42979 | -1/Access | Destroyed Executioner 43037 | -1/Access | Spotted Striker 43037 | -1/Access | Destroyed Executioner 43038 | -1/Access | Spotted Striker 43038 | -1/Access | Destroyed Striker 43039 | -1/Access | Spotted Executioner 43039 | -1/Access | Destroyed Executioner 43041 | -1/Access | Destroyed Striker 43041 | -1/Access | Destroyed Executioner 43063 | -1/Access | Destroyed 13 combat bots 43159 | -1/Access | Destroyed Striker 43159 | -1/Access | Destroyed Executioner 43159 | -1/Access | Destroyed Executioner 43180 | -1/Access | Destroyed 7 combat bots 43218 | -1/Access | Spotted Striker 43219 | -1/Access | Destroyed Striker 43257 | -1/Access | Spotted Executioner 43257 | -1/Access | Spotted Executioner 43257 | -1/Access | Spotted Executioner 43258 | -1/Access | Destroyed Executioner 43258 | -1/Access | Spotted Striker 43258 | -1/Access | Spotted Executioner 43259 | -1/Access | Destroyed Executioner 43260 | -1/Access | Destroyed Executioner 43260 | -1/Access | Destroyed Executioner 43264 | -1/Access | Destroyed Striker 43284 | -1/Access | Spotted Striker 43286 | -1/Access | Destroyed Executioner 43286 | -1/Access | Spotted Executioner 43288 | -1/Access | Destroyed Striker 43291 | -1/Access | Destroyed Executioner 43321 | -1/Access | Destroyed 18 combat bots 43399 | -1/Access | Sterilization system engaged 43417 | -1/Access | Destroyed Executioner 43419 | -1/Access | Destroyed Executioner 43442 | -1/Access | Destroyed 8 combat bots 43466 | -1/Access | Spotted Striker 43466 | -1/Access | Destroyed Striker 43490 | -1/Access | Destroyed 12 combat bots 43699 | -1/Access | Ambient heat levels rising (+10) 43849 | -1/Access | Ambient heat levels rising (+10) 43923 | -1/Access | Destroyed 8 combat bots 43999 | -1/Access | Ambient heat levels rising (+10) 44149 | -1/Access | Ambient heat levels rising (+10) 44288 | -1/Access | Energy Cycler disabled 44299 | -1/Access | Ambient heat levels rising (+10) 44449 | -1/Access | Ambient heat levels rising (+10) 44599 | -1/Access | Ambient heat levels rising (+10) 44714 | -1/Access | Discovered new exit (range 18) 44749 | -1/Access | Ambient heat levels rising (+10) 44773 | -1/Access | Identified exit to Command 44774 | -1/Access | Entered Command 44821 | -1/Command | High security lockdown imminent 44869 | -1/Command | Spotted Executioner 44870 | -1/Command | Found Zero-point Reactor 44871 | -1/Command | System corruption reached 10% 44876 | -1/Command | Destroyed Executioner 44880 | -1/Command | Spotted Executioner 44884 | -1/Command | Destroyed Executioner 44901 | -1/Command | High security lockdown engaged 44909 | -1/Command | Destroyed 22 combat bots 44911 | -1/Command | Found Exp. Focal Shield 44914 | -1/Command | Lost 5 parts (1p3u1w) 45081 | -1/Command | Destroyed Executioner 45089 | -1/Command | Spotted Executioner 45090 | -1/Command | Destroyed Executioner 45103 | -1/Command | Spotted Investigator 45103 | -1/Command | Destroyed Investigator 45129 | -1/Command | Destroyed 39 combat bots 45228 | -1/Command | Spotted Striker 45230 | -1/Command | Destroyed Striker 45231 | -1/Command | Destroyed Striker 45253 | -1/Command | Spotted Striker 45254 | -1/Command | Spotted Executioner 45254 | -1/Command | Destroyed Executioner 45254 | -1/Command | Destroyed Striker 45260 | -1/Command | Destroyed Striker 45281 | -1/Command | Destroyed 27 combat bots 45439 | -1/Command | Spotted Striker 45442 | -1/Command | Destroyed Striker 45449 | -1/Command | Destroyed Striker 45451 | -1/Command | Destroyed Striker 45452 | -1/Command | Destroyed Executioner 45453 | -1/Command | Destroyed Striker 45475 | -1/Command | Destroyed Executioner 45496 | -1/Command | Destroyed 30 combat bots 45685 | -1/Command | Spotted Executioner 45685 | -1/Command | Spotted Executioner 45687 | -1/Command | Destroyed Executioner 45687 | -1/Command | Destroyed Executioner 45687 | -1/Command | Destroyed Striker 45688 | -1/Command | Destroyed Executioner 45691 | -1/Command | Destroyed Executioner 45693 | -1/Command | Destroyed Executioner 45697 | -1/Command | Destroyed Striker 45698 | -1/Command | Destroyed Striker 45707 | -1/Command | Destroyed Executioner 45708 | -1/Command | Destroyed Executioner 45710 | -1/Command | Spotted Striker 45711 | -1/Command | Destroyed Striker 45712 | -1/Command | Destroyed Striker 45714 | -1/Command | Spotted Striker 45716 | -1/Command | Destroyed Striker 45716 | -1/Command | Spotted Striker 45717 | -1/Command | Found Zero-point Reactor 45722 | -1/Command | Destroyed Striker 45726 | -1/Command | Destroyed Striker 45747 | -1/Command | Destroyed 38 combat bots 46023 | -1/Command | Spotted Striker 46024 | -1/Command | Spotted Striker 46024 | -1/Command | Destroyed Striker 46024 | -1/Command | Destroyed Striker 46025 | -1/Command | Spotted Investigator 46025 | -1/Command | Destroyed Investigator 46027 | -1/Command | Destroyed Executioner 46028 | -1/Command | Destroyed Executioner 46049 | -1/Command | Destroyed 11 combat bots 47202 | -1/Command | Fired Sigix Terminator 47202 | -1/Command | MAIN.C activated Command garrisons 47223 | -1/Command | Destroyed 171 combat bots 47320 | -1/Command | Destroyed 7 combat bots 47468 | -1/Command | Destroyed 11 combat bots 47690 | -1/Command | Destroyed 23 combat bots 47935 | -1/Command | Destroyed 8 combat bots 47945 | -1/Command | Found Adv. Micro-nuke Launcher 48218 | -1/Command | Found Adv. Particle Accelerator 48228 | -1/Command | Destroyed Alpha 7 48251 | -1/Command | Spotted Executioner 48263 | -1/Command | Spotted Striker 48264 | -1/Command | Spotted Striker 48267 | -1/Command | Destroyed Striker 48270 | -1/Command | Destroyed Striker 48275 | -1/Command | Destroyed Executioner 48308 | -1/Command | Destroyed Executioner 48315 | -1/Command | Destroyed Executioner 48337 | -1/Command | Destroyed 19 combat bots 48339 | -1/Command | Spotted Alpha 7 48349 | -1/Command | Destroyed Alpha 7 48364 | -1/Command | Spotted Executioner 48370 | -1/Command | Destroyed Executioner 48397 | -1/Command | Spotted Combat Programmer 48399 | -1/Command | Spotted Combat Programmer 48403 | -1/Command | Spotted M Guard 48407 | -1/Command | Spotted M Guard 48430 | -1/Command | Destroyed Combat Programmer 48447 | -1/Command | System corruption reached 30% 48460 | -1/Command | Destroyed Combat Programmer 48492 | -1/Command | Lost 15 parts (1p1n9u4w) 48492 | -1/Command | Destroyed M Guard 48499 | -1/Command | Destroyed M Guard 48499 | -1/Command | All MAIN.C guards destroyed 48570 | -1/Command | Core integrity fell below 50% 48759 | -1/Command | Core integrity fell below 20% 48797 | -1/Command | Spotted B-99 Colossus 48812 | -1/Command | Destroyed by H-88 Terminator with KE Penetrator Last Messages --------------- 48767_ Imp. Quantum Reactor destroyed. 48767_ Penetrated by Slug. 48772_ Exp. Targeting Computer destroyed. 48776_ Triggered Gamma Bomb Trap. 48776_ A bubble of electromagnetic force engulfs the area. 48776_ Door malfunctions. 48777_ System corrupted: Component data lost. 48790_ System corrupted: Slammed into wall. 48792_ H,EQO=>40BQCFM, P0GXJZNTRTZU=:KRN 48793_ Knocked back. 48793_ P-80 Master knocked back. 48793_ Slug penetrates Wall. 48793_ Slug penetrates P-80 Master. 48793_ Quantum Router disabled. 48795_ Cld. Q-thruster destroyed. 48799_ Slug penetrates Wall. 48799_ Penetrated by Slug. 48799_ Slug penetrates Door. 48812_ Operations Mainframe disabled. 48812_ Penetrated by Slug. Map ----- +----------------------------------------------------+ | ????????????????????????# #????????????????? | | ????????????????????????# #???###########??? | | ????????????????????????# #???# #??? | | ????????????????????????# ##### #??? | | ????????????????????????# / #??? | | ????????????????????????# ### #??? | | ????????????????????????# # #?# #### | | ????????????????????????# # #?# + | | ????????????????????????# # #?# ## | | ????????????????????????# # #?# ## | | ????????????????????????# # ######""###### | | ????????????????????????# # | | ????????????????????????# # | | ????????????????????????# # | | ????????????????????????# # """" "" | | ????????????????????????# # """" """" | | ????????????????????????# # """" """" ### | | ????????????????????????# # """" "" "?# | | ????????????????????????# ; # | | ????????????????????????# # # | | ????????????????????????# # p ###+ | | ????????????????????????# # """ """" ## | | ????????????????????????# # """" """" ## | | ????????????????????????# """" """" ## | | ????????????????????????# """" "??" ## | | ????????????????????????#@ ? ## | | ????????????????????????# ? ?# | | ????????????????????????# h? ?+ | | ??????????????????????###c#############+??####?# | | ??????????????????????# #??????????????# | | ??????????????????????# #??????????????# | | ??????????????????????# "" #??????????????# | | ??????????????????????# """" #??????????????# | | ??????????????????????# """" #??????????????### | | ??????????????????????# "" #????????????????? | | ??????????????????????# #????????????????? | | ??????????????????????# #????????????????? | | ??????????????????????###########?? ?????????? | | ????????????????????????????????? ???????? | | ?????????????????????????????? #?????? | | ???????????????????????????? ##?###? | | ???????????????????????????? ? # | | ???????????????????????????? " ? # | | ????????????????????????????"" "? # | | ???????????????????????????#"" """ # | | ???????????????????????????# " "" # | | ???????????????????????????# " # | | ???????????????????????????# # | | ???????????????????????????# # | | ????????????????????????????? # | +----------------------------------------------------+ Best States ------------- Heat Dissipation 142 Coolant Potential 200 Energy Generation 147 Energy Capacity 840 Matter Stores 782 Matter Capacity 800 Sight Range 16 Robot Scan Range 19 Terrain Scan Range 24 Terrain Scan Density 210 Power Amplification 70 Armor Coverage 1350 Resistance: KI 30 Resistance: EX 50 Weapon Cycling 25 Evasion (%) 65 Targeting Accuracy 12 Core Analysis 12 Recoil Reduction 4 Particle Charging 50 Offensive Hacking 12 Item Schematics ----------------- Combat Drone Bay | -7/Data Miner | Free Lgt. Regenerative Plating | -7/Data Miner | Free Biomechanical Wings | -7/Data Miner | Free Exp. Propulsion Shielding | -7/Data Miner | Free Antimatter Cannon | -7/Data Miner | Free Antigrav System | -7/Data Miner | Free Imp. Dynamic Insulation System | -7/Data Miner | Free Mass Driver | -7/Data Miner | Free Hvy. Flak Cannon | -7/Data Miner | Free Imp. Recalibrator | -7/Data Miner | Free Quantum Capacitor | -7/Data Miner | Free Lrn. Sensor Array | -7/Data Miner | Free Assault Drone Bay | -4/Zhirov | Free Exp. Heat Sink | -4/Zhirov | Free Exp. Optical Array | -4/Zhirov | Free Imp. Arc Thrower | -4/Zhirov | Free Hvy. Proton Missile Launcher | -3/Testing | Archive Adv. Myomer Leg | -3/Testing | Archive Adv. Plasma Rifle | -3/Testing | Archive Robot Schematics ------------------ E-15 Imp | -7/Data Miner | Free L-41 Fighter | -7/Data Miner | Free B-48 Gladiator | -7/Data Miner | Free G-47 Trooper | -7/Data Miner | Free B-60 Warrior | -7/Data Miner | Free X-82 Rainmaker | -3/Testing | Archive Fabricated ------------ Nothing Alien Tech Used ----------------- Sigix Terminator Achievements -------------- None Challenges ------------ None Cogshop Purchases (234) ------------------------- Imp. Treads (874) Imp. Treads (874) Imp. Ion Engine (699) Med. Armor Plating (699) Cooling System (699) Adv. Beam Cannon (769) Adv. Beam Cannon (769) Med. Armor Plating (858) Lrn. Tractor Beam (684) Missile Launcher (1254) Missile Launcher (1254) Hrd. Medium Armor Plating (1067) Lrn. Tractor Beam (823) Cooling System (720) Hrd. Medium Armor Plating (890) Gauss Cannon (Loot Box) Imp. Shield Generator (Loot Box) Cld. Cesium-ion Thruster (Loot Box) Hvy. Armor Plating (Loot Box) Imp. Terrain Scanner (Loot Box) Hpw. Tractor Beam (Loot Box) EM Pulse Cannon (Loot Box) Imp. Spread Laser (Loot Box) Transmission Jammer (Loot Box) Imp. Hover Unit (Loot Box) Imp. Flight Unit (Loot Box) Matter Compressor (Loot Box) Launcher Loader (Loot Box) Prc. Beam Rifle (Loot Box) Imp. Trap Extractor (Loot Box) Datajack (Loot Box) Hardlight Generator (Loot Box) Lightning Gun (Loot Box) Kinecellerator (Loot Box) Ion Cannon (649) EM Pulse Cannon (649) Med. Treads (1260) Adv. Targeting Computer (601) Hvy. Rocket Launcher (935) Cld. Particle Cannon (969) Enh. Nuclear Core (842) Med. Treads (1053) Cld. Particle Cannon (975) Adv. Sensor Array (1182) Adv. Signal Interpreter (745) Exp. Targeting Computer (1490) Exp. Targeting Computer (1830) Imp. Medium Treads (1089) Imp. Medium Treads (1148) Imp. Medium Armor Plating (620) Imp. Heavy Armor Plating (689) Imp. Hacking Suite (1122) Pulse Rifle (Loot Box) Microactuators (Loot Box) Lgt. Fission Core (Loot Box) Sigix Terminator (Loot Box) Cld. Plasma Cannon (715) Cld. Plasma Cannon (715) Cld. Plasma Cannon (715) Lyr. Heavy Armor Plating (875) Adv. Cooling System (968) Hvy. Treads (1284) Hvy. Treads (1284) Mni. Smartbomb Launcher (2814) Enh. Fission Core (850) Rocket Array (2581) Adv. VSS Leg (Loot Box) Cmb. Antigrav System (Loot Box) Tiamat Missile Launcher (Loot Box) Field Propulsion Array (Loot Box) Lrn. Terrain Scanner (Loot Box) Imp. Recalibrator (Loot Box) Adv. Recalibrator (Loot Box) Quantum Rifle (Loot Box) Enh. Flexi-carbon Leg (Loot Box) Flak Gun (Loot Box) Plasma Lance (Loot Box) Imp. Weapon Cycler (Loot Box) Vibroblade (Loot Box) Adv. Variable Charge Gun (Loot Box) Lgt. Fission Core (Loot Box) Adv. Cryofiber Web (Loot Box) Gyrokinetic Inverter (Loot Box) Adv. Hardlight Generator (Loot Box) Imp. Field Recycling Unit (Loot Box) Centrium Greatsword (Loot Box) Hardcell Cannon (Loot Box) Blast Cannon (Loot Box) Adv. Signal Interpreter (706) Rocket Array (2491) Lyr. Heavy Armor Plating (1417) Rocket Array (2987) Hvy. Treads (1936) Exp. Signal Interpreter (1051) Mak. Sensor Array (1219) Exp. Cooling System (1328) Lyr. Heavy Armor Plating (1107) Hvy. Siege Treads (1554) Hvy. Siege Treads (1554) Quantum Capacitor (1296) Micro-nuke Launcher (2342) Adv. System Restoration Module (2912) Micro-nuke Launcher (1752) Micro-nuke Launcher (1900) Imp. Force Field (2932) Hvy. Antimatter Reactor (882) Hvy. Antimatter Reactor (882) Lrn. Tractor Beam (2271) Hrd. Heavy Armor Plating (602) Adv. Matter Compressor (894) Imp. Weapon Cycler (2049) Exp. Cooling System (2959) Adv. Heavy Treads (1656) Adv. Heavy Treads (1656) Adv. Weapon Cycler (3030) Centrium Heavy Armor Plating (1943) Adv. KE Penetrator (1176) Adv. KE Penetrator (1176) Adv. KE Penetrator (1344) Adv. KE Penetrator (1344) Adv. Force Field (2835) Centrium Heavy Armor Plating (2345) Mak. Sensor Array (2401) Core Analyzer (926) Lrn. Tractor Beam (1346) Adv. Force Field (2187) Adv. Micro-nuke Launcher (2913) Adv. Micro-nuke Launcher (2913) Adv. Micro-nuke Launcher (2913) Exp. Matter Compressor (968) Coolant Network (2061) Graviton Reactor (2779) Graviton Reactor (2779) Arm. Heavy Treads (1266) Exp. Reaction Control System (Loot Box) Adv. Heavy Siege Treads (Loot Box) Lgt. Quantum Reactor (Loot Box) Biometal Heavy Treads (Loot Box) Exp. Actuator Array (Loot Box) Adv. Heavy Siege Treads (Loot Box) Centrium Leg (Loot Box) Centrium Leg (Loot Box) Quantum Reactor (Loot Box) Lgt. Quantum Reactor (Loot Box) Lgt. Quantum Reactor (Loot Box) Imp. Armor Integrity Analyzer (Loot Box) Centrium Leg (Loot Box) Centrium Leg (Loot Box) Lgt. Quantum Reactor (Loot Box) Null Cannon (Loot Box) Launcher Loader (1377) Particle Accelerator (3304) Quantum Capacitor (1652) Exp. Force Field (3855) Exp. Force Field (3855) Zero-point Reactor (4146) Lrn. Tractor Beam (1341) Zero-point Reactor (3742) Zero-point Reactor (3742) Imp. System Restoration Module (2360) Imp. System Restoration Module (2445) Lrn. Sensor Array (2500) Vortex Chain Reactor (5868) Hdn. Centrium Heavy Treads (4960) Hdn. Centrium Heavy Treads (4960) Mak. Sensor Array (2232) Adv. Particle Accelerator (7814) Exp. Hacking Suite (4256) Exp. Hacking Suite (4256) Lrn. Tractor Beam (2192) Enh. Nova Cannon (1453) Lyr. Medium Armor Plating (744) Lyr. Medium Armor Plating (744) Lyr. Medium Armor Plating (744) Lyr. Medium Armor Plating (744) Adv. Focal Shield (3501) Adv. Power Amplifier (3501) Enh. Gamma Bomb Array (3948) Mak. Sensor Array (3501) Micro-nuke Launcher (1692) Hdn. Centrium Heavy Treads (5254) Hdn. Centrium Heavy Treads (5254) Neutron Missile Launcher (4182) Lrn. Tractor Beam (2422) Lrn. Terrain Scanner (3633) Adv. Terrain Scan Processor (959) Exp. Hacking Suite (4017) Exp. Hacking Suite (4017) Exp. Focal Shield (9228) Exp. Power Amplifier (4613) Centrium Medium Armor Plating (2610) Adv. Force Field (3334) Com. Battery (819) Centrium Medium Armor Plating (2646) Enh. Nova Cannon (1495) Hvy. Battle Rifle (663) Hvy. Battle Rifle (663) Adv. Coolant Injector (3691) Adv. Coolant Injector (3691) Exp. Core Analyzer (1380) Adv. System Restoration Module (3020) Adv. System Restoration Module (2976) Hvy. Hardcell Cannon (2477) Lrn. Tractor Beam (2619) Adv. Force Field (4574) Imp. Shock Absorption System (3870) Adv. Micro-nuke Launcher (3386) Imp. Shock Absorption System (5936) Adv. Power Amplifier (8558) Exp. Core Analyzer (1594) Centrium Medium Armor Plating (1834) Adv. Coolant Injector (8558) Adv. Coolant Injector (8558) Adv. Heavy Siege Treads (1526) Centrium Medium Armor Plating (2011) Adv. Heavy Siege Treads (1717) Imp. Shock Absorption System (10450) Adv. Force Field (12350) Adv. Power Amplifier (11400) Enh. Nova Cannon (968) Enh. Nova Cannon (968) Enh. Nova Cannon (968) Enh. Nova Cannon (968) Centrium Medium Armor Plating (2011) Centrium Medium Armor Plating (2011) Centrium Medium Armor Plating (2011) Imp. Quantum Reactor (1447) Imp. Quantum Reactor (1447) Imp. Quantum Reactor (1447) Adv. Heavy Siege Treads (1916) Cld. Q-thruster (945) Cld. Q-thruster (945) Cld. Q-thruster (945) Cld. Q-thruster (945) Game ------ Seed GuidedDisruptionBuckler Manual? 0 Play Time 06:31:11 Cumulative 1614.1 hours Start 2022.11.21 @ 20:02:27 End 2022.11.23 @ 20:03:50 Sessions 3 Manual Loads 0 Difficulty Rogue Special Mode AFD2019/Pay2Buy Game No. 567 Rogue 567 Adventurer 0 Explorer 0 Win Type - Total 118 Types 26/12/49/6/1/2/20/1/1 Lore% 97 Gallery% 97 Achievement% 86 Wizard Run 0 Options --------- ASCII 0 Keyboard 0 Movement Numpad Keybinds 0 Fullscreen 1 Font 18/SmallcapsGlow Map View 76x50 Tactical HUD 1 Map Filters NONE Filters NONE Steam 1 RUN: 4a94ac4e-619c-44d2-a225-dfa11355f9e3